{"text_format":"1","workbook":"xlsx","n_sheets":20,"sheets":["Cover Page","Contents","Facility Info","Operational Data","Operational Summary","Perf. Form 1","Energy Form 1","Permit Compliance","Improvements","Public Liasion","Residue Quality ","Air (periodic)","Air (CEMS)","HCl","SO2","NOx","TOC","Particulates","CO 95% 10 min","NH3"],"not_rendered":{"charts":7,"images":3,"macros":1,"external_links":0,"defined_names":20,"comments":0,"pivot_tables":0},"unopened":[],"bounds":{"document_bytes":16777216,"sheet_cells":100000,"rows_first":2000,"rows_last":500,"rows_between":2000,"halvings":0,"cell_chars":16384,"cell_head_chars":4096},"cells_cut":0,"cells_raw":0,"read":"whole","date_system":"1900"}

{"sheet":"Cover Page","index":0,"n_rows":53,"n_cols":14,"rows_kept":53,"cut":false,"hidden":false,"merged":[[13,13,18,15],[34,1,34,8],[0,3,5,6],[7,1,23,8],[28,1,28,8],[30,1,30,8],[32,1,32,8],[48,2,48,3],[48,6,48,8],[52,2,52,3],[36,1,36,8],[40,2,40,8],[42,2,42,4],[44,2,44,4],[46,2,46,3],[46,6,46,8]]}
[null,null,null,"Add company logo"]
[null,null,null,null,null,null,null,null,null,null,null,null,null,"Version 20.6"]
[]
[]
[]
[]
[]
[null,"Add photo"]
[]
[]
[]
[]
[null,null,null,null,null,null,null,null,null,null,null,null,null,"Notes:"]
[null,null,null,null,null,null,null,null,null,null,null,null,null,"This template may require adjustments by individual operators to meet specific reporting requirements as defined in the site Permit(s)"]
[]
[]
[]
[]
[]
[]
[]
[]
[]
[]
[]
[]
[]
[]
[null,"Annual Performance Report 2020"]
[]
[null,"Permit EPR/EP3034SN"]
[]
[null,"Eastcroft EfW"]
[]
[]
[]
[null,"WasteNotts (Reclamation) Limited"]
[]
[null,"Year:",2020]
[]
[null,"Address:","Incinerator Road, Off Cattle Market Road, Nottingham, NG23JH"]
[]
[null,"Tel: ","0115 9869505"]
[]
[null,"Email: ","info.eastcroft@fccenvironment.co.uk  "]
[]
[null,"Prepared by:","Michael Day",null,null,"Position:","Environment Manager"]
[]
[null,"Approved by:","Tony Cox",null,null,"Position:","General Manager"]
[]
[null,"Version:",1]
[]
[null,"Issue Date:","2021-01-25"]

{"sheet":"Contents","index":1,"n_rows":42,"n_cols":11,"rows_kept":42,"cut":false,"hidden":false,"merged":[[41,0,44,9],[34,1,34,6],[35,1,35,6],[36,1,36,6],[37,1,37,6],[38,1,38,6],[39,1,39,6],[33,1,33,6],[19,1,19,6],[20,1,20,6],[21,1,21,6],[24,1,24,6],[25,1,25,6],[26,1,26,6],[27,1,27,6],[28,1,28,6],[29,1,29,6],[32,1,32,6],[18,1,18,6],[8,1,8,6],[9,1,9,6],[10,1,10,6],[11,1,11,6],[12,1,12,6],[13,1,13,6],[14,1,14,6],[15,1,15,6],[16,1,16,6],[17,1,17,6],[3,1,3,6],[4,1,4,6],[4,10,7,14],[5,1,5,6],[6,1,6,6],[7,1,7,6]]}
["Annual performance report for 2020",null,null,null,"Eastcroft EfW"]
[]
["Contents",null,null,null,null,null,null,null,null,null,"Notes:"]
["Section","Subject",null,null,null,null,null,"Page ",null,null,"Section references and Page nos. to be inserted"]
[null,"Facility Information",null,null,null,null,null,3,null,null,"Sections and Subjects may require adjustment by individual operators to meet specific reporting requirements as defined in the sites Permit(s)"]
[null,"Operational data",null,null,null,null,null,4]
[null,"Operational summary",null,null,null,null,null,5]
[null,"Performance Form 1",null,null,null,null,null,6]
[null,"Energy Form 1",null,null,null,null,null,7]
[null,"Permit Compliance",null,null,null,null,null,8]
[null,"Improvements",null,null,null,null,null,9]
[null,"Public Liasion",null,null,null,null,null,10]
[null,"Residue Quality",null,null,null,null,null,11]
[null,"Emissions to Air (periodically monitored)",null,null,null,null,null,12]
[null,"Emissions to Air (continuously monitored)",null,null,null,null,null,13]
[null,"Hydrogen Chloride emissions",null,null,null,null,null,14]
[null,"Sulphur Dioxdie emsissions",null,null,null,null,null,15]
[null,"Oxides of Notrigen emissions",null,null,null,null,null,16]
[null,"Total Organic Carbon emissions",null,null,null,null,null,17]
[null,"Particulate Matter emissions",null,null,null,null,null,18]
[null,"Carbon Monoxide emissions",null,null,null,null,null,19]
[null,"Ammonia emissions",null,null,null,null,null,20]
[]
["Version Control"]
["Section","Information",null,null,null,null,null,"Date"]
[]
[]
[]
[]
[]
[]
["Distribution"]
["Copy","Name, Role",null,null,null,null,null,"No."]
[]
[]
[]
[]
[]
[]
[]
[]
["This report is required under the Industrial Emissions Directive’s Article 55(2) requirements on reporting and public information on waste incineration plants and co-incineration plants, which require the operator to produce an annual report on the functioning and monitoring of the plant and make it available to the public. "]

{"sheet":"Facility Info","index":2,"n_rows":22,"n_cols":11,"rows_kept":22,"cut":false,"hidden":false,"merged":[[4,0,17,8],[21,0,53,8],[4,10,13,13],[21,10,30,13]]}
[{"$f":"+'Cover Page'!$B$29","v":"Annual Performance Report 2020"},null,null,null,{"$f":"+'Cover Page'!$B$33","v":"Eastcroft EfW"}]
[]
["Plant Description and Design",null,null,null,null,null,null,null,null,null,"Notes:"]
[]
["The EfW facility currently comprises two incineration streams each capable of burning up to 11.7 tonnes/hour of municipal and light commercial and industrial waste. The plant has a theoretical capacity of just over 200,000 tonnes per annum; however with planned maintenance the annual throughput is approximately 185,000 tonnes. The site has planning permission to add a third line to the plant which is included in the scope of the Environmental Permit (EP3034SN) but has yet to be developed.\n\nThe facility generates around 50 tonnes of steam per hour with no electrical generation undertaken at the Eastcroft facility. Steam is exported to a third party (EnviroEnergy) who operate a combined heat and power facility providing electricity and feeding into Nottingham's district heating network.",null,null,null,null,null,null,null,null,null,"Include summary of plant design, design capacity, no. of combustion lines, electrical and heat capacity and any other general information that describes the facility, its location and purpose "]
[]
[]
[]
[]
[]
[]
[]
[]
[]
[]
[]
[]
[]
[]
["Summary of Operational Processes and Procedures"]
[]
["Municipal waste and non-hazardous commercial/industrial/trade waste is delivered to site by lorry and tipped into one of two refuse bunkers inside the tipping hall. Deliveries are typically made from Monday to Saturday morning. Waste is transferred from the bunkers by grab crane into the feed chute of each incinerator stream. Waste is only fed to the incinerator if the temperature is above 850°C. \n\nEach incinerator stream has a moving grate on which the waste is burned, with preheated air being injected  from below the grate. Combustion air is drawn from the tipping hall and boiler hall to reduce odours and dust levels in these areas and fed to the furnace via an air preheater which can raise the temperature of the air up to 160°C. Two auxiliary burners, fired on gas oil, are installed halfway up each combustion chamber to maintain temperatures above the 850°C threshold. The auxiliary burners are also used to pre-heat the incinerators before start up. \n\nAmmonium hydroxide is injected into the furnaces to reduce emissions of nitrogen oxides (this technique is known as selective non-catalytic reduction or SNCR). Hot gases from the combustion chamber pass to a boiler in which steam is raised and sent to the London Road Heat Station (operated by EnviroEnergy) for supply of heat to the district heating system and generation of electricity. Flue gases leaving the boiler are cooled to about 130°C in the economiser to achieve the correct temperature for gas treatment. \n\nIncinerator bottom ash is quenched in water and collected in a residuals bunker inside the building. The silo is emptied regularly and the bottom ash is sent for metal extraction and use as a substitute aggregate. \n\nFly ash entrained within the incinerator exhaust gases, together with any accumulations of dust removed from the walls of the economiser by the shot cleaning system, is treated in the air pollution control equipment.\n\nEach incinerator stream has its own dedicated air pollution control equipment. Cooled flue gases leaving the economiser are dosed with a mixture of hydrated lime, activated carbon and recirculated reagent, in order to reduce acid gases (by reaction with the lime), and other substances such as heavy metals and hydrocarbons (by adsorption onto the activated carbon). The exhaust gases and reagent particles are then filtered in a four compartment fabric filter to remove the dust burden. The fabric filters are regularly cleaned by reverse jet pulses, and the collected end product is stored in the APC residue silo. The APC residue silo is regularly emptied and the residue used to treat industrial acidic wastes before final disposal in a suitably licensed landfill site.\n\nThe treated exhaust gases from both streams are discharged via the 91m high stack. The final emissions from the municipal waste incinerator are continuously monitored for particulate matter, sulphur dioxide, nitrogen oxides, carbon monoxide, hydrogen chloride, volatile organic compounds and ammonia prior to entry into the main stack.\n",null,null,null,null,null,null,null,null,null,"Include summary of key processes and procedures such as (but not limited to); waste reception, control rooms, grate, bed and boiler, energy & heat  generation, cooling systems, residue management, emission controls, health and safety systems, maintenance"]

{"sheet":"Operational Data","index":3,"n_rows":54,"n_cols":11,"rows_kept":54,"cut":false,"hidden":false,"merged":[[5,10,6,10],[7,1,16,1],[7,10,15,10],[20,1,23,1],[25,1,26,1],[27,2,27,5],[27,6,27,7],[30,1,32,1],[45,0,46,0],[3,1,3,2]]}
[{"$f":"+'Cover Page'!$B$29","v":"Annual Performance Report 2020"},null,null,null,{"$f":"+'Cover Page'!$B$33","v":"Eastcroft EfW"}]
[]
["Operational Data",null,null,null,null,null,null,null,null,null,"Notes:"]
["Plant Size",200000,null,"tonnes pa",null,"MWth",null,"MWe",null,null,"* - RDF to include SRF "]
["No. of combustion lines",1,null,"No. of Turbines:",null,0,null,null,null,null,"** - CHP plants only"]
[null,null,null,null,null,null,null,null,null,null,"2020 updates include;  heat in MWh, water in Litres, NCV in MJ/kg"]
["Waste types received","Unit","Q1","Q2","Q3","Q4","Year Total","%"]
["Household / Local Authority","tonnes",52819,42913,44151,51209,{"$f":"SUM(C8:F8)","v":191092},{"$f":"IF(G8>0,G8/$G$15,\"-\")","v":0.99994735797196532},null,null,"Availabiity Definition: 'the availability of a line is to be calculated by the number of hours the line reported Continuously Monitored emission levels to the Regulator through the calendar year divided by the total number of hours in that year. \nThe overall plant availability is calculated as the Mean of all lines in the plant. For clarity this includes periods of Other Than Normal Operating Conditions (OTNOC) and abnormal operation.'  \n\nRationale: The primary function of an Energy from Waste facility is the disposal of waste. It follows therefore that the availability of a plant is determined by the period of time a facility spends undertaking this activity."]
["Commercial & Industrial ",null,10.06,0,0,0,{"$f":"SUM(C9:F9)","v":10.06},5.2642028034653316E-5]
["Hazardous ",null,0,0,0,0,0,"-"]
["Clinical",null,0,0,0,0,0,"-"]
["Waste wood (biomass) ",null,0,0,0,0,0,"-"]
["Refuse Derived Fuel * - H'hold/LA",null,0,0,0,0,0,"-"]
["Refuse Derived Fuel *  - C&I",null,0,0,0,0,0,"-"]
["Total waste received",null,{"$f":"SUM(C8:C14)","v":52829.06},{"$f":"SUM(D8:D14)","v":42913},{"$f":"SUM(E8:E14)","v":44151},{"$f":"SUM(F8:F14)","v":51209},{"$f":"SUM(G8:G14)","v":191102.06},1]
["Rejected Waste ",null,0,0,0,0,{"$f":"SUM(C16:F16)","v":0},{"$f":"IF(G16>0,G16/$G$15,\"-\")","v":"-"}]
["Unprocessed waste transferred out",null,0,0,0,0,0,{"$f":"IF(G17>0,G17/$G$15,\"-\")","v":"-"}]
["Total waste combusted",null,{"$f":"C15-SUM(C16:C17)","v":52829.06},{"$f":"D15-SUM(D16:D17)","v":42913},44151,51209,{"$f":"SUM(C18:F18)","v":191102.06},{"$f":"IF(G18>0,G18/$G$15,\"-\")","v":1}]
[]
["Energy Useage / Export","Unit","Q1","Q2","Q3","Q4","Year Total","KWh/te"]
["Power Generated","MWh",0,0,0,0,{"$f":"SUM(C21:F21)","v":0},{"$f":"IF(G21>0,G21*1000/$G$18,\"-\")","v":"-"}]
["Power Exported",null,0,0,0,0,{"$f":"SUM(C22:F22)","v":0},{"$f":"IF(G22>0,G22*1000/$G$18,\"-\")","v":"-"}]
["Power Used on site",null,2348,2082,2091,2576,{"$f":"SUM(C23:F23)","v":9097},{"$f":"IF(G23>0,G23*1000/$G$18,\"-\")","v":47.60283588779734}]
["Power Imported",null,2348,2082,2091,2576,9097,{"$f":"IF(G24>0,G24*1000/$G$18,\"-\")","v":47.60283588779734}]
["Parasitic Load","%",{"$f":"IF(C21>0,1-C22/(C21+C24),\"-\")","v":"-"},{"$f":"IF(D21>0,1-D22/(D21+D24),\"-\")","v":"-"},{"$f":"IF(E21>0,1-E22/(E21+E24),\"-\")","v":"-"},{"$f":"IF(F21>0,1-F22/(F21+F24),\"-\")","v":"-"},{"$f":"IF(G21>0,1-G22/(G21+G24),\"-\")","v":"-"}]
["Thermal Energy Produced **","MWh",107438,91803,92764,112496,{"$f":"SUM(C26:F26)","v":404501},{"$f":"IF(G26>0,G26*1000/$G$18,\"-\")","v":2116.6752467241849}]
["Thermal Energy Exported **",null,{"$f":"C26","v":107438},{"$f":"D26","v":91803},92764,112496,404501,{"$f":"IF(G27>0,G27*1000/$G$18,\"-\")","v":2116.6752467241849}]
["R1 value",null,null,null,null,null,"n/a"]
[]
["Waste Disposal & Recovery","Unit","Q1","Q2","Q3","Q4","Year Total","% inputs"]
["APC Residues - produced","tonnes",1140,1111,975,1174,{"$f":"SUM(C31:F31)","v":4400},{"$f":"IF(G31>0,G31/$G$15,\"-\")","v":2.302434625770125E-2}]
["IBA - produced",null,9320,9658,8658,9908,37544,{"$f":"IF(G32>0,G32/$G$15,\"-\")","v":0.19646046724980359}]
["Metals recycling",null,0,0,0,0,{"$f":"SUM(C33:F33)","v":0},{"$f":"IF(G33>0,G33/$G$15,\"-\")","v":"-"}]
[]
["Raw Material Usage","Unit","Q1","Q2","Q3","Q4","Year Total","kg or Ltr /te"]
["Mains Water","ltrs",908,789,908,955,{"$f":"SUM(C36:F36)","v":3560},{"$f":"IF(G36>0,G36/$G$15,\"-\")","v":1.8628789244867376E-2}]
["Other Water","ltrs",0,0,0,0,0,{"$f":"IF(G37>0,G37/$G$15,\"-\")","v":"-"}]
["Ammonia","kgs",114000,80000,100000,160000,454000,{"$f":"IF(G38>0,G38/$G$15,\"-\")","v":2.3756939093173566}]
["Activated Carbon","kgs",26208,26083,26688,26976,105955,{"$f":"IF(G39>0,G39/$G$15,\"-\")","v":0.55444195630334914}]
["Lime / hydrated lime","kgs",227041,190607,188008,175599,781255,4.0881558262637254]
["Fuel oil","ltrs",32221,32011,73008,9247,146487,0.76653804778451895]
["Gas","cf",0,0,0,0,0]
["Other",null,0,0,0,0,0]
[]
["Summary ","Line/Unit","Q1","Q2","Q3","Q4","Year Total",null,null,"Hrs in year "]
["Availability of waste combustion by line, hrs",{"$f":"+B5","v":1},2146,1837,1797,2206,{"$f":"SUM(C46:F46)","v":7986},{"$f":"G46/$J$46","v":0.90915300546448086},null,{"$f":"24*366","v":8784}]
[null,2,2172,1824,1914,2208,8118,{"$f":"G47/$J$46","v":0.92418032786885251}]
["Overall Availability, mean avg. of all lines, hrs",null,{"$f":"AVERAGE(C46:C47)","v":2159},{"$f":"AVERAGE(D46:D47)","v":1830.5},1855.5,2207,{"$f":"AVERAGE(G46:G47)","v":8052},{"$f":"G48/$J$46","v":0.91666666666666663}]
["Hours of heat / steam export",1,{"$f":"C46","v":2146},{"$f":"D46","v":1837},1797,2206,7986,{"$f":"G49/$J$46","v":0.90915300546448086}]
["Hours of heat / steam export",2,{"$f":"C47","v":2172},1824,1914,2208,8118,{"$f":"G50/$J$46","v":0.92418032786885251}]
["Net Calorific Value of waste","MJ/kg",8.3000000000000007,8.3000000000000007,8.3000000000000007,8.3000000000000007,8.3000000000000007,"-"]
["Abnormal Events","qty.",0,0,0,0,0,{"$f":"IF(G52>0,\"yes\",\"no\")","v":"no"}]
["Abnormal operation","hours",0,0,0,0,0,{"$f":"+(G53)/J46","v":0}]
["Permit Breaches","qty.",1,1,0,0,2,{"$f":"IF(G54>0,\"yes\",\"no\")","v":"yes"}]

{"sheet":"Operational Summary","index":4,"n_rows":31,"n_cols":11,"rows_kept":31,"cut":false,"hidden":false,"merged":[[4,0,26,8],[30,0,51,8],[4,10,13,13],[30,10,39,13]]}
[{"$f":"+'Cover Page'!$B$29","v":"Annual Performance Report 2020"},null,null,null,{"$f":"+'Cover Page'!$B$33","v":"Eastcroft EfW"}]
[]
["Summary of Plant Operations and Maintenance during the reporting year",null,null,null,null,null,null,null,null,null,"Notes:"]
[]
["During 2020 the facility ran for 16,104 hours across the 2 lines representing an availability of 91.67% with 191,097 tonnes delivered to site compared to a permit limit of 200,000 tonnes per annum. Nearly all of this waste was delivered by the local authorities of Nottingham and the surrounding area and most other wastes being categorised as municipal (Chapter 20 of the List of Wastes Regulations).\n\nThe facility submitted 2 schedule notifications during the year, 1 for a half hourly value for Total Organic Carbon and a second for a sample of Hydrogen Fluoride. No periods of abnormal operation or substantiated complaints were received.\n\nThe plant provided 405 Gwh of energy in the form of steam and hot water to the EnviroEnergy facility who operate a combined heat and power station, providing electricity to private customers, the national grid and provides heating to households and commercial premises through their district heating system. Eastcroft receives all electrical supply and water for the process from EnviroEnergy. \n\nThe main period of downtime related to a planned maintenance period within where both routine maintenance that cannot be undertaken while the plant is operational took place and some major replacements to boiler parts were also undertaken. Further modifications and optimisation to the combustion and other processes was undertaken throughout the year while a Continuous Emissions Monitoring system installed and completed quality assurance checks in late 2019 become operational at the start of 2020.",null,null,null,null,null,null,null,null,null,"Include summary of key operational and/or maintenance activity undertaken in the year, such as any major component upgrades and/or replacements "]
[]
[]
[]
[]
[]
[]
[]
[]
[]
[]
[]
[]
[]
[]
[]
[]
[]
[]
[]
[]
[]
[]
[]
["Summary of Residue Handling for the reporting year"]
[]
["Incinerator Bottom Ash (IBA) is sampled 4 times per year for permit compliance purposes, in particular for Total Organic Content where the permit has a limit of 3%. Full compliance was achieved during 2020; no values were above 3% with an average value of 1.2% achieved. \n\nAdditional testing of IBA is undertaken in order to correctly classify the IBA. 24 samples (2 per month) were taken in 2020 to assess for any hazardous content within the IBA. During 2020 all 24 sample results were returned confirming the classification of the IBA as non-hazardous.\n\nAll metals within the IBA are sent along with the non-hazardous IBA to a third party company who operate a permitted facility dedicated to management of bottom ash. Metals are segregated and sent for recycling while the remaining incinerator bottom ash is used as a substitute aggregate material for use within the construction industry. Modifications simplifying the ash removal process were made during late 2020, with vehicles now directly loaded via the existing crane rather than the crane loading a separate silo.\n\nAir Pollution Control Residues (APCr) formed from the cleaning of the flue gases are also analysed on a quarterly basis, albeit with no limits set within the permit. The APCr is tankered to a permitted treatment site where the material is used to neutralise highly acidic wastes before the resulting residue is sent for disposal.\n\n",null,null,null,null,null,null,null,null,null,"Include in here a summary of residue handling regimes and destinations "]

{"sheet":"Perf. Form 1","index":5,"n_rows":52,"n_cols":10,"rows_kept":52,"cut":false,"hidden":false,"merged":[[8,0,8,1],[8,2,8,3],[8,4,8,5],[8,6,8,7],[8,8,8,9],[2,0,2,4],[2,6,2,8],[3,1,3,4],[5,3,5,4],[5,6,5,7],[9,0,9,9],[10,0,10,1],[10,2,10,3],[10,4,10,5],[10,6,10,7],[10,8,10,9],[11,0,11,1],[11,2,11,3],[11,4,11,5],[11,6,11,7],[11,8,11,9],[14,0,14,9],[12,0,12,3],[12,4,12,5],[12,6,12,7],[12,8,12,9],[13,0,13,1],[13,2,13,3],[13,4,13,5],[13,6,13,7],[13,8,13,9],[18,0,18,3],[18,4,18,5],[18,6,18,7],[18,8,18,9],[15,0,15,1],[15,2,15,3],[15,4,15,5],[15,6,15,7],[15,8,15,9],[16,0,16,1],[16,2,16,3],[16,4,16,5],[16,6,16,7],[16,8,16,9],[17,8,17,9],[17,6,17,7],[31,7,31,8],[29,0,29,3],[29,4,29,5],[29,7,29,8],[19,0,19,3],[19,4,19,5],[19,6,19,7],[19,8,19,9],[21,0,21,9],[22,0,24,9],[27,0,27,3],[27,7,27,8],[28,0,28,3],[28,4,28,5],[28,7,28,8],[46,0,47,9],[34,0,34,9],[35,0,36,9],[39,0,39,1],[39,2,39,9],[41,0,41,1],[42,0,42,1],[17,4,17,5],[17,2,17,3],[17,0,17,1],[43,0,43,1],[45,0,45,9],[32,0,32,3],[32,4,32,5],[32,7,32,8],[33,0,33,3],[33,4,33,5],[33,7,33,8],[30,0,30,3],[30,4,30,5],[30,7,30,8],[31,0,31,3],[31,4,31,5]]}
[{"$f":"+'Cover Page'!C39","v":2020}," Annual Reporting Performance Form 1"]
[]
[{"$f":"+'Cover Page'!B31","v":"Permit EPR/EP3034SN"},null,null,null,null,"Operator: ","WasteNotts (Reclamation) Limited"]
["Facility:",{"$f":"+'Cover Page'!B33:I33","v":"Eastcroft EfW"},null,null,null,"Form:","Performance 1"]
[]
["Reporting  Period from: ",null,null,"2020-01-01",null,"to:","2020-12-31"]
[]
[{"$f":"+A1","v":2020},"Annual Reporting of Waste Disposal and Recovery"]
["Waste Description",null,"Disposal Route(s)",null,"Disposal Tonnes",null,"Recovery Tonnes",null,"% / tonne of waste incinerated"]
["1) Hazardous Wastes"]
["APC Residues",null,"D13",null,{"$f":"'Operational Data'!G31","v":4400},null,null,null,{"$f":"'Operational Data'!H31","v":2.302434625770125E-2}]
["IBA",null,null,null,null,null,null,null,{"$f":"IF((E12+G12)>0,(E12+G12)/#REF!, \"-\")","v":"-"}]
["Total Hazardous Waste",null,null,null,{"$f":"SUM(E11:F12)","v":4400},null,null,null,{"$f":"I11","v":2.302434625770125E-2}]
[]
["2) Non-Hazardous Wastes"]
["IBA",null,"R05",null,null,null,{"$f":"'Operational Data'!G32","v":37544},null,{"$f":"'Operational Data'!H32","v":0.19646046724980359}]
["Ferrous Metal",null,null,null,null,null,null,null,{"$f":"IF((E17+G17)>0,(E17+G17)/#REF!, \"-\")","v":"-"}]
["Process Water",null,null,null,null,null,null,null,{"$f":"IF((E18+G18)>0,(E18+G18)/#REF!, \"-\")","v":"-"}]
["Total Non-Hazardous Waste",null,null,null,{"$f":"SUM(E16:F18)","v":0},null,{"$f":"SUM(G16:H18)","v":37544},null,{"$f":"I16","v":0.19646046724980359}]
["TOTAL WASTE",null,null,null,{"$f":"+E19+E13","v":4400},null,{"$f":"+G19+G13","v":37544},null,{"$f":"I19+I11","v":0.21948481350750484}]
[]
["Operator’s comments :"]
["All metal is accounted for within the IBA which is separated by a third party IBA recycling facility."]
[]
[]
[]
[{"$f":"+A1","v":2020},"Annual Reporting of Water and Other Raw Material Usage"]
["Raw Material",null,null,null,"Usage",null,"Unit","Specific Usage",null,"Unit"]
["Mains Water",null,null,null,{"$f":"'Operational Data'!G36","v":3560},null,"m3",0.02,null,"m3/te"]
["Total Water",null,null,null,3560,null,"m3",0.02,null,"m3/te"]
["Ammonia",null,null,null,454000,null,"kg",2.38,null,"kg/te"]
["Activated Carbon",null,null,null,105955,null,"kg",0.55000000000000004,null,"kg/te"]
["Lime",null,null,null,781255,null,"kg",4.09,null,"kg/te"]
[]
["Operator’s comments :"]
[]
[]
[]
[{"$f":"+A27","v":2020},"Annual Reporting of other performance indicators "]
["Parameter",null,"Results by Line"]
[null,null,"A1","A2","A3","A4","A5",null,"Turbine 1","Turbine 2"]
["Operating hours for the year, hours",null,{"$f":"'Operational Data'!G46","v":7986},{"$f":"'Operational Data'!G47","v":8118}]
["Number of periods of abnormal operation, qty.",null,0,0]
["Cumulative hours of abnormal operation for this year, hours",null,0,0]
[]
["Operator’s comments :"]
[]
[]
[]
[]
[]
["Signed: ",null,null,null,null,null,"Date:","2021-01-15"]

{"sheet":"Energy Form 1","index":6,"n_rows":29,"n_cols":8,"rows_kept":29,"cut":false,"hidden":false,"merged":[[2,6,2,8],[4,1,4,4],[6,3,6,4],[6,6,6,7],[8,0,8,2],[8,3,8,4],[8,6,8,8],[9,0,9,2],[9,3,9,4],[9,6,9,8],[10,0,10,2],[10,3,10,4],[10,6,10,8],[11,0,11,2],[11,3,11,4],[11,6,11,8],[12,0,12,2],[12,3,12,4],[12,6,12,8],[13,0,13,2],[13,3,13,4],[13,6,13,8],[14,0,14,2],[14,3,14,4],[14,6,14,8],[15,0,15,2],[15,3,15,4],[15,6,15,8],[17,0,17,8],[18,0,24,8]]}
[{"$f":"+'Cover Page'!C39","v":2020}," Annual Reporting of Energy Usage/Export"]
[]
[{"$f":"+'Cover Page'!B31","v":"Permit EPR/EP3034SN"},null,null,null,null,"Operator: ",{"$f":"'Perf. Form 1'!G3:I3","v":"WasteNotts (Reclamation) Limited"}]
[]
["Facility:",{"$f":"+'Cover Page'!B33:I33","v":"Eastcroft EfW"},null,null,null,"Form:","Energy 1"]
[]
["Reporting  Period from: ",null,null,{"$f":"+'Perf. Form 1'!D6:E6","v":"2020-01-01"},null,"to:",{"$f":"+'Perf. Form 1'!G6:H6","v":"2020-12-31"}]
[]
["Energy Source",null,null,"Energy Usage",null,"Unit","Specific Usage (KWh/tonne incinerated"]
["Electricity Produced",null,null,0,null,"MWh",0]
["Electricity Imported   ",null,null,9097,null,"MWh",48]
["Electricity Exported",null,null,0,null,"MWh",0]
["Gas Oil",null,null,124148,null,"tonnes",6.4999999999999997E-4]
["Steam/hot water exported",null,null,405,null,"GWh",2117]
[]
[]
[]
["Operator’s comments :"]
["Eastcroft sends steam to a third party who operate a combined heat and power facility and thus no electricity generation is provided from Eastcroft in the returns and all electricity is imported from the combined heat and power station operators (EnviroEnergy)."]
[]
[]
[]
[]
[]
[]
[]
[]
[]
["Signed: ",null,null,null,null,null,"Date:","2021-01-15"]

{"sheet":"Permit Compliance","index":7,"n_rows":25,"n_cols":12,"rows_kept":25,"cut":false,"hidden":false,"merged":[[8,11,15,14],[24,4,24,8],[9,0,9,1],[9,2,9,4],[9,5,9,8],[10,0,10,1],[10,2,10,4],[10,5,10,8],[11,0,11,1],[11,2,11,4],[11,5,11,8],[12,0,12,1],[12,2,12,4],[12,5,12,8],[13,0,13,1],[13,2,13,4],[13,5,13,8],[14,0,14,1],[14,2,14,4],[14,5,14,8],[7,0,7,1],[7,2,7,8],[8,0,8,1],[8,2,8,4],[8,5,8,8],[23,1,23,3],[23,4,23,6],[23,7,23,9],[19,1,19,3],[19,4,19,6],[19,7,19,9],[21,0,21,10],[16,0,16,10],[22,1,22,3],[22,4,22,6],[22,7,22,9],[17,1,17,3],[17,4,17,6],[17,7,17,9],[18,1,18,3],[18,4,18,6],[18,7,18,9]]}
[{"$f":"+'Cover Page'!$B$29","v":"Annual Performance Report 2020"},null,null,null,{"$f":"+'Cover Page'!$B$33","v":"Eastcroft EfW"}]
[]
["Summary of Permit Compliance"]
[]
["Compliance with permit limits for continuously monitored pollutants"]
[]
["The plant met its emission limits as per the table below:"]
["Substance",null,"Percentage time compliant during operation",null,null,null,null,null,null,null,null,"Notes:"]
[null,null,"Half-hourly limit",null,null,"Daily limit",null,null,null,null,null,"Report to 2 decimal places, i.e. xx.xx%\n\nPlease provide a brief summary of each notification or non-compliance in the table (rather than just referring to notifications that were sent to the Regulator).  \n\n"]
["Particulates",null,1,null,null,1]
["Oxides of nitrogen",null,1,null,null,1]
["Sulphur dioxide",null,1,null,null,1]
["Carbon monoxide",null,"\n100% 95% of 10-min averages",null,null,1]
["Total organic carbon",null,0.99990000000000001,null,null,1]
["Hydrogen chloride",null,1,null,null,1]
[]
["Summary of any notifications or non-compliances under the permit"]
["Date","Summary of notification or non-compliance ",null,null,"Reason ",null,null,"Measures taken to prevent reoccurrence"]
["2020-02-03","Line 2 half hourly TOC value of 20.8 against limit of 20",null,null,"Substance within waste",null,null,"Communication with waste suppliers"]
["2020-04-30","Line 2 HF periodic result of 2.7 against limit of 2",null,null,"Waste",null,null,"Additional monitoring and inspections"]
[]
["Summary of any complaints received and actions to taken to resolve them."]
["Date","Summary of complaint",null,null,"Reason *",null,null,"Measures taken to prevent reoccurrence"]
["2020-07-13","Noise ",null,null,"Unsubstantiated - source of noise not relating to site operations.",null,null,"N/A"]
[null,null,null,null,"* including whether substantiated by the operator or the EA"]

{"sheet":"Improvements","index":8,"n_rows":39,"n_cols":5,"rows_kept":39,"cut":false,"hidden":false,"merged":[[38,0,46,9],[47,0,47,9],[37,0,37,9],[4,0,4,9],[5,0,13,9],[15,0,15,9],[16,0,24,9],[26,0,26,9],[27,0,35,9]]}
[{"$f":"+'Cover Page'!$B$29","v":"Annual Performance Report 2020"},null,null,null,{"$f":"+'Cover Page'!$B$33","v":"Eastcroft EfW"}]
[]
["Summary of Plant Improvements"]
[]
["Summary of any efficiency improvements that have been completed within the year."]
["Work to optimise the combustion control system and reagent dosing systems continued throughout 2020 along with routine maintenance as per the sites maintenance schedule. A new Continuous Emissions Monitoring system which was installed and undertook quality assurance checks become operational for 2020. providing additional redundancy to the previous system."]
[]
[]
[]
[]
[]
[]
[]
[]
[]
["Summary of any permit improvement conditions that have been completed within the year and the resulting environmental benefits."]
["All improvement conditions relating to the existing facility have been completed in advance of 2020. 2 improvement conditions remain within the current permit, these relate to the potential expansion of the facility and the addition of a third line. These conditions cannot be progress further until plans for the development of a third line have been concluded."]
[]
[]
[]
[]
[]
[]
[]
[]
[]
["Summary of any changes to the plant or operating techniques which required a variation to the permit and a summary of the resulting environmental impact."]
["No changes have been undertaken that require a permit variation. Over the next year as part of the BREF implementation process there may be variations required to update the permit to incorporate the latest requirements of the Waste Incineration BREF. "]
[]
[]
[]
[]
[]
[]
[]
[]
[]
["Summary of any other improvements made to the plant or planned to be made and a summary of the resulting environmental benefits."]
["Plans continue to develop a third line for the facility to divert further waste from landfill. Other modifications to the control systems for the plant will be undertaken to ensure compliance can continue to be achieved with the implementation of the revised Waste Incineration BREF and the lower emission limit values this will introduce."]

{"sheet":"Public Liasion","index":9,"n_rows":25,"n_cols":5,"rows_kept":25,"cut":false,"hidden":false,"merged":[[16,0,16,1],[16,2,16,9],[5,0,5,1],[5,2,5,9],[6,0,7,1],[6,2,7,9],[8,0,9,1],[8,2,9,9],[10,0,11,1],[10,2,11,9],[12,0,13,1],[12,2,13,9],[15,0,15,9],[24,0,24,9],[17,0,18,1],[17,2,18,9],[19,0,20,1],[19,2,20,9],[21,0,22,1],[21,2,22,9]]}
[{"$f":"+'Cover Page'!$B$29","v":"Annual Performance Report 2020"},null,null,null,{"$f":"+'Cover Page'!$B$33","v":"Eastcroft EfW"}]
[]
["Details of Public & Stakeholder Liaison"]
[]
["Summary of events held during the reporting year."]
["Date",null,"Description"]
["2020-01-15",null,"Routine community liaison meeting"]
[]
["July 2020",null,"Liaison meeting planned was suspended due to the coronavirus pandemic "]
[]
[]
[]
[]
[]
[]
["List of events planned for next year"]
["Date",null,"Description"]
["TBC",null,"Liaison meetings continue to be suspended due to the Coronavirus pandemic. Information including emissions data is regularly updated on the FCC Eastcroft website"]
[]
[]
[]
[]
[]
[]
["If you wish to be involved in the public liaison programme, please contact info.eastcroft@fccenvironment.co.uk 0115 9869505 or visit https://eastcroft.fccenvironment.co.uk/contact-us/ "]

{"sheet":"Residue Quality ","index":10,"n_rows":32,"n_cols":6,"rows_kept":32,"cut":false,"hidden":false,"merged":[[16,0,17,1],[16,2,17,6],[10,0,10,6],[11,0,11,1],[11,2,11,6],[5,0,6,6],[7,0,8,6],[12,0,13,1],[12,2,13,6],[14,0,15,1],[14,2,15,6],[18,0,19,1],[18,2,19,6],[27,3,27,4],[23,2,24,2],[24,3,24,4],[24,5,24,6],[23,3,23,6],[22,0,22,6],[31,0,36,6],[28,3,28,4],[30,0,30,6],[23,0,24,1],[25,0,25,1],[26,0,26,1],[27,0,27,1],[28,0,28,1],[25,3,25,4],[26,3,26,4],[25,5,25,6],[26,5,26,6],[27,5,27,6],[28,5,28,6]]}
[{"$f":"+'Cover Page'!$B$29","v":"Annual Performance Report 2020"},null,null,null,{"$f":"+'Cover Page'!$B$33","v":"Eastcroft EfW"}]
[]
["Residue Quality Monitoring Requirements"]
[]
["Summary of monitoring undertaken and compliance"]
["Monitoring of residues for permit compliance was undertaken with full compliance to the residue limit recorded. No specific events were recorded during 2020."]
[]
["All 24 samples taken and analysed as per the ESA protocol were returned demonstrating that the Incinerator Bottom Ash should be classified as non-hazardous. "]
[]
[]
["Commentary on any specific events"]
["Date & Event",null,"Description"]
[]
[]
[]
[]
[]
[]
[]
[]
[]
[]
["Residue Quality Monitoring Results"]
["Parameter (unit) ",null,"Limit","Normal Operation "]
[null,null,null,"Bottom ash  ",null,"APC Residues"]
["Loss on Ignition (average %)",null,"<5%"]
["Total Organic Carbon (average %)",null,"<3%",1.3]
["No. of Assessments Undertaken",null,null,24,null,4]
["No. of Hazardous Results",null,null,0]
[]
["Comments :"]
["NB. 24 results relate to assessment against the WM3 criteria, 4 assessments were undertaken for compliance purposes."]

{"sheet":"Air (periodic)","index":11,"n_rows":39,"n_cols":12,"rows_kept":39,"cut":false,"hidden":false,"merged":[[5,11,7,14],[8,11,10,14],[7,0,7,8],[5,0,6,8],[10,0,10,1],[11,0,11,1],[10,3,10,4],[11,3,11,4],[8,0,9,1],[8,5,8,8],[8,3,9,4],[8,2,9,2],[15,0,15,1],[16,0,16,1],[17,0,17,1],[12,0,12,1],[13,0,13,1],[14,0,14,1],[39,0,39,8],[24,0,24,1],[25,0,25,1],[21,0,21,1],[22,0,22,1],[36,0,36,1],[26,0,26,1],[27,0,27,1],[28,0,28,1],[29,0,29,1],[30,0,30,1],[31,0,31,1],[36,3,36,4],[28,3,28,4],[29,3,29,4],[35,3,35,4],[38,0,38,8],[18,0,18,1],[19,0,19,1],[20,0,20,1],[33,3,33,4],[34,3,34,4],[32,0,32,1],[33,0,33,1],[34,0,34,1],[35,0,35,1],[23,0,23,1],[31,3,31,4],[37,0,37,1],[37,3,37,4],[12,3,12,4],[13,3,13,4],[14,3,14,4],[15,3,15,4],[16,3,16,4],[17,3,17,4],[26,3,26,4],[32,3,32,4],[18,3,18,4],[19,3,19,4],[20,3,20,4],[21,3,21,4],[22,3,22,4],[23,3,23,4],[30,3,30,4],[24,3,24,4],[25,3,25,4],[27,3,27,4]]}
[{"$f":"+'Cover Page'!$B$29","v":"Annual Performance Report 2020"},null,null,null,{"$f":"+'Cover Page'!$B$33","v":"Eastcroft EfW"}]
[]
["Emissions to Air (periodically monitored)"]
[]
["Summary of monitoring undertaken, standards used and compliance",null,null,null,null,null,null,null,null,null,null,"Notes:"]
["Emissions monitoring is undertaken on a bi-annual basis using independent MCERT accredited monitoring individuals. The frequency of testing and standards used for monitoring are those which are prescribed within the permit.",null,null,null,null,null,null,null,null,null,null,"Template may require adjustment for any bespoke monitoring requirements of permit. "]
[]
["Results of emissions to air that are periodically monitored"]
["Substance",null,"Ref. Period","Emission Limit Value",null,"Average",null,null,null,null,null,"User to add additional tables as necessary, depending on whether quarterly or bi-annual reporting is required for the compliance year"]
[null,null,null,null,null,"A1","A2"]
["Hydrogen fluoride",null,"1 hr","2 mg/m3",null,0.66,1.5149999999999999]
["Cd and Th and their compounds",null,"6-8hrs","0.05 mg/m3",null,3.0000000000000001E-3,6.9999999999999999E-4]
["Hg and its compounds",null,"6-8hrs","0.05 mg/m3",null,5.0000000000000001E-4,5.5000000000000003E-4]
["Sb, As, Pb, Cr, Co, Cu, Mn, Ni, V and their compounds",null,"6-8hrs","0.5 mg/m3",null,1.4E-2,0.03]
["Dioxins & Furans (I-TEQ)",null,"6-8hrs","0.1 ng/m3",null,4.4499999999999997E-4,4.75E-4]
["PCBs (WHO-TEQ Humans / Mammals)",null,"6-8hrs","None set ng/m3",null,3.3500000000000001E-5,3.0000000000000001E-5]
["PCBs (WHO-TEQ Fish)",null,"6-8hrs","None set ng/m3",null,3.9999999999999998E-6,6.4999999999999996E-6]
["PCBs (WHO-TEQ Birds)",null,"6-8hrs","None set ng/m3",null,2.81E-4,3.5E-4]
["Dioxins & Furans (WHO-TEQ Humans / Mammals)",null,"6-8hrs","None set ng/m3",null,4.2499999999999998E-4,4.6500000000000003E-4]
["Dioxins & Furans (WHO-TEQ Fish)",null,"6-8hrs","None set ng/m3",null,4.55E-4,4.6999999999999999E-4]
["Dioxins & Furans (WHO-TEQ Birds)",null,"6-8hrs","None set ng/m3",null,6.2E-4,1.1299999999999999E-3]
["Anthanthrene",null,"6-8hrs","None set µg/m3",null,3.8500000000000001E-3,3.7000000000000002E-3]
["Benzo(a)anthracene",null,"6-8hrs","None set µg/m3",null,1.4E-2,0.01]
["Benzo(a)pyrene",null,"6-8hrs","None set µg/m3",null,6.0000000000000001E-3,0.01]
["Benzo(b)fluoranthene",null,"6-8hrs","None set µg/m3",null,3.8500000000000001E-3,4.7999999999999996E-3]
["Benzo(b)naptho(2,1-d) thiophene",null,"6-8hrs","None set µg/m3",null,3.8500000000000001E-3,4.7499999999999999E-3]
["Benzo(c)phenanthrene",null,"6-8hrs","None set µg/m3",null,4.8500000000000001E-3,5.2500000000000003E-3]
["Benzo(ghi)perylene",null,"6-8hrs","None set µg/m3",null,3.8500000000000001E-3,3.7000000000000002E-3]
["Benzo(k)fluoranthene",null,"6-8hrs","None set µg/m3",null,3.8500000000000001E-3,3.7000000000000002E-3]
["Cholanthrene",null,"6-8hrs","None set µg/m3",null,4.8500000000000001E-3,5.7499999999999999E-3]
["Chrysene",null,"6-8hrs","None set µg/m3",null,0.04,1.2999999999999999E-2]
["Cyclopenta(cd)pyrene",null,"6-8hrs","None set µg/m3",null,4.8500000000000001E-3,7.2500000000000004E-3]
["Dibenzo(ai)pyrene",null,"6-8hrs","None set µg/m3",null,4.5850000000000002E-2,3.8E-3]
["Dibenzo(ah)anthracene",null,"6-8hrs","None set µg/m3",null,5.8500000000000002E-3,5.5500000000000002E-3]
["Fluoranthene",null,"6-8hrs","None set µg/m3",null,0.125,0.16]
["Indeno(123-cd) pyrene",null,"6-8hrs","None set µg/m3",null,3.8500000000000001E-3,4.3E-3]
["Naphthalene",null,"6-8hrs","None set µg/m3",null,0.88500000000000001,2.64]
["N20",null,"1 hr","None set",null,1.72,1.5]
["Comments :"]

{"sheet":"Air (CEMS)","index":12,"n_rows":28,"n_cols":12,"rows_kept":28,"cut":false,"hidden":false,"merged":[[26,0,26,8],[28,0,28,8],[13,0,14,0],[5,0,6,8],[7,0,8,8],[10,0,10,8],[11,0,12,0],[11,2,12,2],[11,1,12,1],[11,3,11,4],[11,5,11,6],[11,7,11,8]]}
[{"$f":"+'Cover Page'!$B$29","v":"Annual Performance Report 2020"},null,null,null,null,null,null,null,{"$f":"+'Cover Page'!$B$33","v":"Eastcroft EfW"}]
[]
["Emissions to Air (continously monitored)"]
[null,null,null,null,null,null,null,null,null,null,null,"Notes:"]
["Summary of monitoring undertaken, standards used and compliance",null,null,null,null,null,null,null,null,null,null,"Template may require adjustment for any bespoke monitoring requirements of permit"]
["Continuous monitoring is undertaken in line with the permit requirements and the BS EN 14181 Standard",null,null,null,null,null,null,null,null,null,null,"Report to 2 decimal places, i.e. xx.xx%"]
[]
[]
[]
[]
["Results of emissions to air that are continuously monitored (maximum and average values for each line)"]
["Substance","Reference Period","Emission Limit Value","A1",null,"A2"]
[null,null,null,"Max.","Avg.","Max.","Avg."]
["Oxides of nitrogen","Daily mean","200 mg/m3 ",{"$f":"NOx!O19","v":195.4},{"$f":"NOx!N19","v":159.01666666666668},{"$f":"NOx!O34","v":183.1},{"$f":"NOx!N34","v":147.96666666666661}]
[null,"½ hourly mean","400 mg/m3 ",{"$f":"NOx!M19","v":345},{"$f":"NOx!L19","v":158.25},{"$f":"NOx!M34","v":333.5},{"$f":"NOx!L34","v":147.86666666666665}]
["Particulates","Daily mean","10 mg/m3",{"$f":"Particulates!O19","v":1.6},{"$f":"Particulates!N19","v":0.47500000000000003},{"$f":"Particulates!O34","v":0.8},{"$f":"Particulates!N34","v":0.19999999999999998}]
[null,"½ hourly mean","30 mg/m3 ",{"$f":"Particulates!M19","v":12.9},{"$f":"Particulates!L19","v":0.52499999999999991},{"$f":"Particulates!M34","v":2.4},{"$f":"Particulates!L34","v":0.2583333333333333}]
["Total Organic Carbon ","Daily mean","10 mg/m3 ",{"$f":"TOC!O19","v":0.8},{"$f":"TOC!N19","v":0.34999999999999992},{"$f":"TOC!O34","v":1.6},{"$f":"TOC!N34","v":0.69166666666666654}]
[null,"½ hourly mean","20 mg/m3 ",{"$f":"TOC!M19","v":18.7},{"$f":"TOC!L19","v":0.36666666666666664},{"$f":"TOC!M34","v":20.8},{"$f":"TOC!L34","v":0.71666666666666667}]
["Hydrogen chloride ","Daily mean","10 mg/m3 ",{"$f":"HCl!$O$19","v":4.5},{"$f":"HCl!$N$19","v":2.625},{"$f":"HCl!$O$34","v":3.5},{"$f":"HCl!$N$34","v":2.2166666666666663}]
[null,"½ hourly mean","60 mg/m3 ",{"$f":"HCl!$M$19","v":22.5},{"$f":"HCl!$L$19","v":2.6416666666666671},{"$f":"HCl!$M$34","v":12.8},{"$f":"HCl!$L$34","v":2.2250000000000001}]
["Sulphur dioxide","Daily mean","50 mg/m3 ",{"$f":"'SO2'!O19","v":18.399999999999999},{"$f":"'SO2'!N19","v":6.4583333333333321},{"$f":"'SO2'!O34","v":19.399999999999999},{"$f":"'SO2'!N34","v":6.5916666666666659}]
[null,"½ hourly mean","200 mg/m3 ",{"$f":"'SO2'!M19","v":65},{"$f":"'SO2'!L19","v":6.5166666666666666},{"$f":"'SO2'!M34","v":85.9},{"$f":"'SO2'!L34","v":6.6166666666666663}]
["Carbon monoxide ","Daily mean","50 mg/m3 ",{"$f":"'CO 95% 10 min'!Q19","v":30.5},{"$f":"'CO 95% 10 min'!P19","v":10.758333333333335},{"$f":"'CO 95% 10 min'!Q34","v":31.2},{"$f":"'CO 95% 10 min'!P34","v":7.4416666666666664}]
[null,"95%ile 10-min avg *","150 mg/m3 ",{"$f":"'CO 95% 10 min'!M19","v":28.691666666666663},{"$f":"'CO 95% 10 min'!N19","v":10.758333333333335},{"$f":"'CO 95% 10 min'!M34","v":22.7},{"$f":"'CO 95% 10 min'!N34","v":7.55}]
[" Ammonia","Daily mean","No limit set",{"$f":"'NH3'!O19","v":9.6},{"$f":"'NH3'!N19","v":0.85000000000000009},{"$f":"'NH3'!O34","v":7.1},{"$f":"'NH3'!N34","v":0.95000000000000007}]
["* = delete or amend as appropriate"]
["Comments :"]

{"sheet":"HCl","index":13,"n_rows":79,"n_cols":17,"rows_kept":79,"cut":false,"hidden":false,"merged":[[12,16,15,18],[51,9,63,9],[66,9,78,9],[4,9,4,14],[4,1,4,3],[4,4,4,6],[48,0,51,6],[47,0,47,6],[6,9,18,9],[21,9,33,9],[36,9,48,9],[3,16,7,18],[9,16,11,18]]}
[{"$f":"+'Cover Page'!$B$29","v":"Annual Performance Report 2020"},null,null,null,{"$f":"+'Cover Page'!$B$33","v":"Eastcroft EfW"}]
[]
["Monitoring of Hydrogen Chloride emissions",null,null,"Whole Installation",null,null,"See  Notes in Cell Q3",null,null,{"$f":"+A3","v":"Monitoring of Hydrogen Chloride emissions"},null,null,null,"Per Combustion Line",null,null,"Notes:"]
[null,null,null,null,null,null,null,null,null,null,null,null,null,null,null,null,"User to add logic to complete Whole installation, Table A5:G18. From the data in Per Combustion Line, Table J6:O79, subject to No. of lines installed"]
["mg/Nm3","1/2 Hourly Reference Periods",null,null,"Daily Reference Periods"]
[{"$f":"+'Cover Page'!C39","v":2020},"1/2 hourly HCl ELV","Monthly 1/2 hourly mean","Highest 1/2 hourly maximum","Daily HCl ELV","Monthly daily mean","Highest daily maximum",null,null,{"$f":"+A6","v":2020},"mg/Nm3","Monthly 1/2 hourly mean","Monthly 1/2 hourly maximum","Monthly daily mean","Monthly daily maximum"]
["Jan",60,{"$f":"AVERAGE(L7,L22)","v":2.2000000000000002},{"$f":"MAX(M7,M22)","v":22.5},10,{"$f":"AVERAGE(N7,N22)","v":2.2000000000000002},{"$f":"MAX(O7,O22)","v":3},null,null,"A1","Jan",2.5,22.5,2.5,3]
["Feb",60,{"$f":"AVERAGE(L8,L23)","v":1.9},{"$f":"MAX(M8,M23)","v":7},10,{"$f":"AVERAGE(N8,N23)","v":1.9},{"$f":"MAX(O8,O23)","v":2.6},null,null,null,"Feb",2.1,5.4,2.1,2.6]
["Mar",60,1.9500000000000002,{"$f":"MAX(M9,M24)","v":5.0999999999999996},10,1.9500000000000002,2.7,null,null,null,"Mar",2.1,5.0999999999999996,2.1,2.7,null,"Whole Installation table A5:G18:"]
["Apr",60,2.75,12.8,10,2.75,3.4,null,null,null,"Apr",3,5.3,3,3.4,null,"Mean: for 1/2 hourly and daily periods calculate mean of values across all operational combustion lines for the month"]
["May",60,2.6,10.5,10,2.5499999999999998,3.5,null,null,null,"May",2.7,8.6999999999999993,2.6,3.3]
["Jun",60,2.4,6.3,10,2.4,3.1,null,null,null,"Jun",2.2999999999999998,5.2,2.2999999999999998,3.1]
["Jul",60,2.5999999999999996,14.5,10,2.5999999999999996,4,null,null,null,"Jul",2.8,14.5,2.8,4,null,"Maximum: for 1/2 hourly and daily periods use the highest value across all operational combustion lines for the month"]
["Aug",60,2.5999999999999996,6.1,10,2.5999999999999996,3.4,null,null,null,"Aug",2.8,5.0999999999999996,2.8,3.4]
["Sep",60,2.2000000000000002,8,10,2.15,2.8,null,null,null,"Sep",2.4,8,2.4,2.8]
["Oct",60,2.2000000000000002,4.5,10,2.15,3.5,null,null,null,"Oct",2.6,4.5,2.5,3.5]
["Nov",60,3,13.7,10,3,4.5,null,null,null,"Nov",3.3,13.7,3.3,4.5]
["Dec",60,2.8,4.4000000000000004,10,2.8,3.5,null,null,null,"Dec",3.1,4.3,3.1,3.5]
[null,null,null,null,null,null,null,null,null,null,"Annual",{"$f":"AVERAGE(L7:L18)","v":2.6416666666666671},{"$f":"MAX(M7:M18)","v":22.5},{"$f":"AVERAGE(N7:N18)","v":2.625},{"$f":"MAX(O7:O18)","v":4.5}]
[]
[null,null,null,null,null,null,null,null,null,{"$f":"+A6","v":2020},"mg/Nm3","Monthly 1/2 hourly mean","Monthly 1/2 hourly maximum","Monthly daily mean","Monthly daily maximum"]
[null,null,null,null,null,null,null,null,null,"A2","Jan",1.9,5.7,1.9,2.2000000000000002]
[null,null,null,null,null,null,null,null,null,null,"Feb",1.7,7,1.7,2]
[null,null,null,null,null,null,null,null,null,null,"Mar",1.8,3.3,1.8,2.2999999999999998]
[null,null,null,null,null,null,null,null,null,null,"Apr",2.5,12.8,2.5,3.1]
[null,null,null,null,null,null,null,null,null,null,"May",2.5,10.5,2.5,3.5]
[null,null,null,null,null,null,null,null,null,null,"Jun",2.5,6.3,2.5,2.9]
[null,null,null,null,null,null,null,null,null,null,"Jul",2.4,4.4000000000000004,2.4,2.8]
[null,null,null,null,null,null,null,null,null,null,"Aug",2.4,6.1,2.4,3.1]
[null,null,null,null,null,null,null,null,null,null,"Sep",2,3.7,1.9,2.5]
[null,null,null,null,null,null,null,null,null,null,"Oct",1.8,3.6,1.8,2.5]
[null,null,null,null,null,null,null,null,null,null,"Nov",2.7,6.1,2.7,3.1]
[null,null,null,null,null,null,null,null,null,null,"Dec",2.5,4.4000000000000004,2.5,3.1]
[null,null,null,null,null,null,null,null,null,null,"Annual",{"$f":"AVERAGE(L22:L33)","v":2.2250000000000001},{"$f":"MAX(M22:M33)","v":12.8},{"$f":"AVERAGE(N22:N33)","v":2.2166666666666663},{"$f":"MAX(O22:O33)","v":3.5}]
[]
[null,null,null,null,null,null,null,null,null,{"$f":"+A6","v":2020},"mg/Nm3","Monthly 1/2 hourly mean","Monthly 1/2 hourly maximum","Monthly daily mean","Monthly daily maximum"]
[null,null,null,null,null,null,null,null,null,"A3","Jan"]
[null,null,null,null,null,null,null,null,null,null,"Feb"]
[null,null,null,null,null,null,null,null,null,null,"Mar"]
[null,null,null,null,null,null,null,null,null,null,"Apr"]
[null,null,null,null,null,null,null,null,null,null,"May"]
[null,null,null,null,null,null,null,null,null,null,"Jun"]
[null,null,null,null,null,null,null,null,null,null,"Jul"]
[null,null,null,null,null,null,null,null,null,null,"Aug"]
[null,null,null,null,null,null,null,null,null,null,"Sep"]
[null,null,null,null,null,null,null,null,null,null,"Oct"]
[null,null,null,null,null,null,null,null,null,null,"Nov"]
["Comments :",null,null,null,null,null,null,null,null,null,"Dec"]
[null,null,null,null,null,null,null,null,null,null,"Annual",{"$f":"AVERAGE(L37:L48)","v":{"$error":"#DIV/0!"}},{"$f":"MAX(M37:M48)","v":0},{"$f":"AVERAGE(N37:N48)","v":{"$error":"#DIV/0!"}},{"$f":"MAX(O37:O48)","v":0}]
[]
[null,null,null,null,null,null,null,null,null,{"$f":"+A6","v":2020},"mg/Nm3","Monthly 1/2 hourly mean","Monthly 1/2 hourly maximum","Monthly daily mean","Monthly daily maximum"]
[null,null,null,null,null,null,null,null,null,"A4","Jan"]
[null,null,null,null,null,null,null,null,null,null,"Feb"]
[null,null,null,null,null,null,null,null,null,null,"Mar"]
[null,null,null,null,null,null,null,null,null,null,"Apr"]
[null,null,null,null,null,null,null,null,null,null,"May"]
[null,null,null,null,null,null,null,null,null,null,"Jun"]
[null,null,null,null,null,null,null,null,null,null,"Jul"]
[null,null,null,null,null,null,null,null,null,null,"Aug"]
[null,null,null,null,null,null,null,null,null,null,"Sep"]
[null,null,null,null,null,null,null,null,null,null,"Oct"]
[null,null,null,null,null,null,null,null,null,null,"Nov"]
[null,null,null,null,null,null,null,null,null,null,"Dec"]
[null,null,null,null,null,null,null,null,null,null,"Annual",{"$f":"AVERAGE(L52:L63)","v":{"$error":"#DIV/0!"}},{"$f":"MAX(M52:M63)","v":0},{"$f":"AVERAGE(N52:N63)","v":{"$error":"#DIV/0!"}},{"$f":"MAX(O52:O63)","v":0}]
[]
[null,null,null,null,null,null,null,null,null,{"$f":"+A6","v":2020},"mg/Nm3","Monthly 1/2 hourly mean","Monthly 1/2 hourly maximum","Monthly daily mean","Monthly daily maximum"]
[null,null,null,null,null,null,null,null,null,"A5","Jan"]
[null,null,null,null,null,null,null,null,null,null,"Feb"]
[null,null,null,null,null,null,null,null,null,null,"Mar"]
[null,null,null,null,null,null,null,null,null,null,"Apr"]
[null,null,null,null,null,null,null,null,null,null,"May"]
[null,null,null,null,null,null,null,null,null,null,"Jun"]
[null,null,null,null,null,null,null,null,null,null,"Jul"]
[null,null,null,null,null,null,null,null,null,null,"Aug"]
[null,null,null,null,null,null,null,null,null,null,"Sep"]
[null,null,null,null,null,null,null,null,null,null,"Oct"]
[null,null,null,null,null,null,null,null,null,null,"Nov"]
[null,null,null,null,null,null,null,null,null,null,"Dec"]
[null,null,null,null,null,null,null,null,null,null,"Annual",{"$f":"AVERAGE(L67:L78)","v":{"$error":"#DIV/0!"}},{"$f":"MAX(M67:M78)","v":0},{"$f":"AVERAGE(N67:N78)","v":{"$error":"#DIV/0!"}},{"$f":"MAX(O67:O78)","v":0}]

{"sheet":"SO2","index":14,"n_rows":79,"n_cols":17,"rows_kept":79,"cut":false,"hidden":false,"merged":[[3,16,7,18],[9,16,11,18],[12,16,15,18],[66,9,78,9],[4,1,4,3],[4,4,4,6],[4,9,4,14],[6,9,18,9],[21,9,33,9],[36,9,48,9],[47,0,47,6],[48,0,51,6],[51,9,63,9]]}
[{"$f":"+'Cover Page'!$B$29","v":"Annual Performance Report 2020"},null,null,null,{"$f":"+'Cover Page'!$B$33","v":"Eastcroft EfW"}]
[]
["Monitoring of Sulphur dioxide emissions",null,null,"Whole Installation",null,null,"See  Notes in Cell Q3",null,null,{"$f":"+A3","v":"Monitoring of Sulphur dioxide emissions"},null,null,null,"Per Combustion Line",null,null,"Notes:"]
[null,null,null,null,null,null,null,null,null,null,null,null,null,null,null,null,"User to add logic to complete Whole installation, Table A5:G18. From the data in Per Combustion Line, Table J6:O79, subject to No. of lines installed"]
["mg/Nm3","1/2 Hourly Reference Periods",null,null,"Daily Reference Periods"]
[{"$f":"+'Cover Page'!C39","v":2020},"1/2 hourly SO2 ELV","Monthly 1/2 hourly mean","Highest 1/2 hourly maximum","Daily SO2 ELV","Monthly daily mean","Highest daily maximum",null,null,{"$f":"+A6","v":2020},"mg/Nm3","Monthly 1/2 hourly mean","Monthly 1/2 hourly maximum","Monthly daily mean","Monthly daily maximum"]
["Jan",200,{"$f":"AVERAGE(L7,L22)","v":3.4},{"$f":"MAX(M7,M22)","v":58.5},50,{"$f":"AVERAGE(N7,N22)","v":3.35},{"$f":"MAX(O7,O22)","v":7.5},null,null,"A1","Jan",3.3,58.5,3.2,5]
["Feb",200,{"$f":"AVERAGE(L8,L23)","v":6.5500000000000007},{"$f":"MAX(M8,M23)","v":72},50,{"$f":"AVERAGE(N8,N23)","v":6.5},{"$f":"MAX(O8,O23)","v":13.5},null,null,null,"Feb",4.7,20,4.5999999999999996,8.3000000000000007]
["Mar",200,8.6999999999999993,67.5,50,8.65,14.7,null,null,null,"Mar",5.4,63,5.4,8.5,null,"Whole Installation table A5:G18:"]
["Apr",200,6.1,50.8,50,6.1,14.9,null,null,null,"Apr",4.8,19,4.8,7.6,null,"Mean: for 1/2 hourly and daily periods calculate mean of values across all operational combustion lines for the month"]
["May",200,4.75,52.4,50,4.75,11.1,null,null,null,"May",4.2,32,4.2,7.3]
["Jun",200,6.3500000000000005,47.8,50,6.35,14.6,null,null,null,"Jun",3.9,28.8,3.8,8.3000000000000007]
["Jul",200,10.050000000000001,85.9,50,9.9499999999999993,19.399999999999999,null,null,null,"Jul",10.1,52.7,10,18.399999999999999,null,"Maximum: for 1/2 hourly and daily periods use the highest value across all operational combustion lines for the month"]
["Aug",200,5.0999999999999996,65,50,5,9.8000000000000007,null,null,null,"Aug",6.6,65,6.4,9.8000000000000007]
["Sep",200,3.9,19.399999999999999,50,3.85,8,null,null,null,"Sep",5,19.399999999999999,5,8]
["Oct",200,6.85,40.5,50,6.85,15,null,null,null,"Oct",8.6999999999999993,26.3,8.6999999999999993,15]
["Nov",200,8.3500000000000014,31.7,50,8.3000000000000007,13.1,null,null,null,"Nov",10.8,31.7,10.8,13.1]
["Dec",200,8.6999999999999993,31.5,50,8.65,13,null,null,null,"Dec",10.7,31.5,10.6,13]
[null,null,null,null,null,null,null,null,null,null,"Annual",{"$f":"AVERAGE(L7:L18)","v":6.5166666666666666},{"$f":"MAX(M7:M18)","v":65},{"$f":"AVERAGE(N7:N18)","v":6.4583333333333321},{"$f":"MAX(O7:O18)","v":18.399999999999999}]
[]
[null,null,null,null,null,null,null,null,null,{"$f":"+A6","v":2020},"mg/Nm3","Monthly 1/2 hourly mean","Monthly 1/2 hourly maximum","Monthly daily mean","Monthly daily maximum"]
[null,null,null,null,null,null,null,null,null,"A2","Jan",3.5,50.6,3.5,7.5]
[null,null,null,null,null,null,null,null,null,null,"Feb",8.4,72,8.4,13.5]
[null,null,null,null,null,null,null,null,null,null,"Mar",12,67.5,11.9,14.7]
[null,null,null,null,null,null,null,null,null,null,"Apr",7.4,50.8,7.4,14.9]
[null,null,null,null,null,null,null,null,null,null,"May",5.3,52.4,5.3,11.1]
[null,null,null,null,null,null,null,null,null,null,"Jun",8.8000000000000007,47.8,8.9,14.6]
[null,null,null,null,null,null,null,null,null,null,"Jul",10,85.9,9.9,19.399999999999999]
[null,null,null,null,null,null,null,null,null,null,"Aug",3.6,58,3.6,6.8]
[null,null,null,null,null,null,null,null,null,null,"Sep",2.8,14.4,2.7,6.3]
[null,null,null,null,null,null,null,null,null,null,"Oct",5,40.5,5,10]
[null,null,null,null,null,null,null,null,null,null,"Nov",5.9,23.3,5.8,10.199999999999999]
[null,null,null,null,null,null,null,null,null,null,"Dec",6.7,26.2,6.7,9.4]
[null,null,null,null,null,null,null,null,null,null,"Annual",{"$f":"AVERAGE(L22:L33)","v":6.6166666666666663},{"$f":"MAX(M22:M33)","v":85.9},{"$f":"AVERAGE(N22:N33)","v":6.5916666666666659},{"$f":"MAX(O22:O33)","v":19.399999999999999}]
[]
[null,null,null,null,null,null,null,null,null,{"$f":"+A6","v":2020},"mg/Nm3","Monthly 1/2 hourly mean","Monthly 1/2 hourly maximum","Monthly daily mean","Monthly daily maximum"]
[null,null,null,null,null,null,null,null,null,"A3","Jan"]
[null,null,null,null,null,null,null,null,null,null,"Feb"]
[null,null,null,null,null,null,null,null,null,null,"Mar"]
[null,null,null,null,null,null,null,null,null,null,"Apr"]
[null,null,null,null,null,null,null,null,null,null,"May"]
[null,null,null,null,null,null,null,null,null,null,"Jun"]
[null,null,null,null,null,null,null,null,null,null,"Jul"]
[null,null,null,null,null,null,null,null,null,null,"Aug"]
[null,null,null,null,null,null,null,null,null,null,"Sep"]
[null,null,null,null,null,null,null,null,null,null,"Oct"]
[null,null,null,null,null,null,null,null,null,null,"Nov"]
["Comments :",null,null,null,null,null,null,null,null,null,"Dec"]
[null,null,null,null,null,null,null,null,null,null,"Annual",{"$f":"AVERAGE(L37:L48)","v":{"$error":"#DIV/0!"}},{"$f":"MAX(M37:M48)","v":0},{"$f":"AVERAGE(N37:N48)","v":{"$error":"#DIV/0!"}},{"$f":"MAX(O37:O48)","v":0}]
[]
[null,null,null,null,null,null,null,null,null,{"$f":"+A6","v":2020},"mg/Nm3","Monthly 1/2 hourly mean","Monthly 1/2 hourly maximum","Monthly daily mean","Monthly daily maximum"]
[null,null,null,null,null,null,null,null,null,"A4","Jan"]
[null,null,null,null,null,null,null,null,null,null,"Feb"]
[null,null,null,null,null,null,null,null,null,null,"Mar"]
[null,null,null,null,null,null,null,null,null,null,"Apr"]
[null,null,null,null,null,null,null,null,null,null,"May"]
[null,null,null,null,null,null,null,null,null,null,"Jun"]
[null,null,null,null,null,null,null,null,null,null,"Jul"]
[null,null,null,null,null,null,null,null,null,null,"Aug"]
[null,null,null,null,null,null,null,null,null,null,"Sep"]
[null,null,null,null,null,null,null,null,null,null,"Oct"]
[null,null,null,null,null,null,null,null,null,null,"Nov"]
[null,null,null,null,null,null,null,null,null,null,"Dec"]
[null,null,null,null,null,null,null,null,null,null,"Annual",{"$f":"AVERAGE(L52:L63)","v":{"$error":"#DIV/0!"}},{"$f":"MAX(M52:M63)","v":0},{"$f":"AVERAGE(N52:N63)","v":{"$error":"#DIV/0!"}},{"$f":"MAX(O52:O63)","v":0}]
[]
[null,null,null,null,null,null,null,null,null,{"$f":"+A6","v":2020},"mg/Nm3","Monthly 1/2 hourly mean","Monthly 1/2 hourly maximum","Monthly daily mean","Monthly daily maximum"]
[null,null,null,null,null,null,null,null,null,"A5","Jan"]
[null,null,null,null,null,null,null,null,null,null,"Feb"]
[null,null,null,null,null,null,null,null,null,null,"Mar"]
[null,null,null,null,null,null,null,null,null,null,"Apr"]
[null,null,null,null,null,null,null,null,null,null,"May"]
[null,null,null,null,null,null,null,null,null,null,"Jun"]
[null,null,null,null,null,null,null,null,null,null,"Jul"]
[null,null,null,null,null,null,null,null,null,null,"Aug"]
[null,null,null,null,null,null,null,null,null,null,"Sep"]
[null,null,null,null,null,null,null,null,null,null,"Oct"]
[null,null,null,null,null,null,null,null,null,null,"Nov"]
[null,null,null,null,null,null,null,null,null,null,"Dec"]
[null,null,null,null,null,null,null,null,null,null,"Annual",{"$f":"AVERAGE(L67:L78)","v":{"$error":"#DIV/0!"}},{"$f":"MAX(M67:M78)","v":0},{"$f":"AVERAGE(N67:N78)","v":{"$error":"#DIV/0!"}},{"$f":"MAX(O67:O78)","v":0}]

{"sheet":"NOx","index":15,"n_rows":79,"n_cols":17,"rows_kept":79,"cut":false,"hidden":false,"merged":[[3,16,7,18],[9,16,11,18],[12,16,15,18],[66,9,78,9],[4,1,4,3],[4,4,4,6],[4,9,4,14],[6,9,18,9],[21,9,33,9],[36,9,48,9],[47,0,47,6],[48,0,51,6],[51,9,63,9]]}
[{"$f":"+'Cover Page'!$B$29","v":"Annual Performance Report 2020"},null,null,null,{"$f":"+'Cover Page'!$B$33","v":"Eastcroft EfW"}]
[]
["Monitoring of Oxides of Nitrogen emissions",null,null,"Whole Installation",null,null,"See  Notes in Cell Q3",null,null,{"$f":"+A3","v":"Monitoring of Oxides of Nitrogen emissions"},null,null,null,"Per Combustion Line",null,null,"Notes:"]
[null,null,null,null,null,null,null,null,null,null,null,null,null,null,null,null,"User to add logic to complete Whole installation, Table A5:G18. From the data in Per Combustion Line, Table J6:O79, subject to No. of lines installed"]
["mg/Nm3","1/2 Hourly Reference Periods",null,null,"Daily Reference Periods"]
[{"$f":"+'Cover Page'!C39","v":2020},"1/2 hourly NOx ELV","Monthly 1/2 hourly mean","Highest 1/2 hourly maximum","Daily NOx ELV","Monthly daily mean","Highest daily maximum",null,null,{"$f":"+A6","v":2020},"mg/Nm3","Monthly 1/2 hourly mean","Monthly 1/2 hourly maximum","Monthly daily mean","Monthly daily maximum"]
["Jan",400,{"$f":"AVERAGE(L7,L22)","v":143.94999999999999},{"$f":"MAX(M7,M22)","v":209.1},200,{"$f":"AVERAGE(N7,N22)","v":143.94999999999999},{"$f":"MAX(O7,O22)","v":176.5},null,null,"A1","Jan",157.1,209.1,157.1,176.5]
["Feb",400,{"$f":"AVERAGE(L8,L23)","v":141.19999999999999},{"$f":"MAX(M8,M23)","v":209.2},200,{"$f":"AVERAGE(N8,N23)","v":141.19999999999999},{"$f":"MAX(O8,O23)","v":163.6},null,null,null,"Feb",149.69999999999999,209.2,149.5,163.6]
["Mar",400,142.94999999999999,305.39999999999998,200,143.15,184.6,null,null,null,"Mar",151,305.39999999999998,151.4,184.6,null,"Whole Installation table A5:G18:"]
["Apr",400,156.05000000000001,211.3,200,156.05000000000001,180.3,null,null,null,"Apr",163.9,205.1,163.9,180.3,null,"Mean: for 1/2 hourly and daily periods calculate mean of values across all operational combustion lines for the month"]
["May",400,150.1,232.9,200,150.19999999999999,177.5,null,null,null,"May",154.1,232.9,154.30000000000001,177.5]
["Jun",400,140.1,345,200,145.1,155.80000000000001,null,null,null,"Jun",134.19999999999999,345,143.19999999999999,155.80000000000001]
["Jul",400,165.8,333.5,200,165.64999999999998,188.8,null,null,null,"Jul",172.7,268.3,172.6,188.8,null,"Maximum: for 1/2 hourly and daily periods use the highest value across all operational combustion lines for the month"]
["Aug",400,164.64999999999998,262.8,200,164.89999999999998,195.4,null,null,null,"Aug",169.2,262.8,169.2,195.4]
["Sep",400,166.05,267.7,200,166.05,175.3,null,null,null,"Sep",167.5,225,167.5,175.3]
["Oct",400,159.39999999999998,261.8,200,159.35,178.1,null,null,null,"Oct",165.1,261.8,165.1,178.1]
["Nov",400,154.14999999999998,214.9,200,154.05000000000001,172.9,null,null,null,"Nov",158.1,208.4,158,172.9]
["Dec",400,152.30000000000001,222.7,200,152.25,169.4,null,null,null,"Dec",156.4,214.6,156.4,169.4]
[null,null,null,null,null,null,null,null,null,null,"Annual",{"$f":"AVERAGE(L7:L18)","v":158.25},{"$f":"MAX(M7:M18)","v":345},{"$f":"AVERAGE(N7:N18)","v":159.01666666666668},{"$f":"MAX(O7:O18)","v":195.4}]
[]
[null,null,null,null,null,null,null,null,null,{"$f":"+A6","v":2020},"mg/Nm3","Monthly 1/2 hourly mean","Monthly 1/2 hourly maximum","Monthly daily mean","Monthly daily maximum"]
[null,null,null,null,null,null,null,null,null,"A2","Jan",130.80000000000001,161.80000000000001,130.80000000000001,146.1]
[null,null,null,null,null,null,null,null,null,null,"Feb",132.69999999999999,174.1,132.9,142.19999999999999]
[null,null,null,null,null,null,null,null,null,null,"Mar",134.9,176.4,134.9,153.1]
[null,null,null,null,null,null,null,null,null,null,"Apr",148.19999999999999,211.3,148.19999999999999,163.30000000000001]
[null,null,null,null,null,null,null,null,null,null,"May",146.1,211.3,146.1,165.5]
[null,null,null,null,null,null,null,null,null,null,"Jun",146,185.8,147,152.69999999999999]
[null,null,null,null,null,null,null,null,null,null,"Jul",158.9,333.5,158.69999999999999,183.1]
[null,null,null,null,null,null,null,null,null,null,"Aug",160.1,223.6,160.6,177.3]
[null,null,null,null,null,null,null,null,null,null,"Sep",164.6,267.7,164.6,173.7]
[null,null,null,null,null,null,null,null,null,null,"Oct",153.69999999999999,227.5,153.6,171.9]
[null,null,null,null,null,null,null,null,null,null,"Nov",150.19999999999999,214.9,150.1,160.5]
[null,null,null,null,null,null,null,null,null,null,"Dec",148.19999999999999,222.7,148.1,167.4]
[null,null,null,null,null,null,null,null,null,null,"Annual",{"$f":"AVERAGE(L22:L33)","v":147.86666666666665},{"$f":"MAX(M22:M33)","v":333.5},{"$f":"AVERAGE(N22:N33)","v":147.96666666666661},{"$f":"MAX(O22:O33)","v":183.1}]
[]
[null,null,null,null,null,null,null,null,null,{"$f":"+A6","v":2020},"mg/Nm3","Monthly 1/2 hourly mean","Monthly 1/2 hourly maximum","Monthly daily mean","Monthly daily maximum"]
[null,null,null,null,null,null,null,null,null,"A3","Jan"]
[null,null,null,null,null,null,null,null,null,null,"Feb"]
[null,null,null,null,null,null,null,null,null,null,"Mar"]
[null,null,null,null,null,null,null,null,null,null,"Apr"]
[null,null,null,null,null,null,null,null,null,null,"May"]
[null,null,null,null,null,null,null,null,null,null,"Jun"]
[null,null,null,null,null,null,null,null,null,null,"Jul"]
[null,null,null,null,null,null,null,null,null,null,"Aug"]
[null,null,null,null,null,null,null,null,null,null,"Sep"]
[null,null,null,null,null,null,null,null,null,null,"Oct"]
[null,null,null,null,null,null,null,null,null,null,"Nov"]
["Comments :",null,null,null,null,null,null,null,null,null,"Dec"]
[null,null,null,null,null,null,null,null,null,null,"Annual",{"$f":"AVERAGE(L37:L48)","v":{"$error":"#DIV/0!"}},{"$f":"MAX(M37:M48)","v":0},{"$f":"AVERAGE(N37:N48)","v":{"$error":"#DIV/0!"}},{"$f":"MAX(O37:O48)","v":0}]
[]
[null,null,null,null,null,null,null,null,null,{"$f":"+A6","v":2020},"mg/Nm3","Monthly 1/2 hourly mean","Monthly 1/2 hourly maximum","Monthly daily mean","Monthly daily maximum"]
[null,null,null,null,null,null,null,null,null,"A4","Jan"]
[null,null,null,null,null,null,null,null,null,null,"Feb"]
[null,null,null,null,null,null,null,null,null,null,"Mar"]
[null,null,null,null,null,null,null,null,null,null,"Apr"]
[null,null,null,null,null,null,null,null,null,null,"May"]
[null,null,null,null,null,null,null,null,null,null,"Jun"]
[null,null,null,null,null,null,null,null,null,null,"Jul"]
[null,null,null,null,null,null,null,null,null,null,"Aug"]
[null,null,null,null,null,null,null,null,null,null,"Sep"]
[null,null,null,null,null,null,null,null,null,null,"Oct"]
[null,null,null,null,null,null,null,null,null,null,"Nov"]
[null,null,null,null,null,null,null,null,null,null,"Dec"]
[null,null,null,null,null,null,null,null,null,null,"Annual",{"$f":"AVERAGE(L52:L63)","v":{"$error":"#DIV/0!"}},{"$f":"MAX(M52:M63)","v":0},{"$f":"AVERAGE(N52:N63)","v":{"$error":"#DIV/0!"}},{"$f":"MAX(O52:O63)","v":0}]
[]
[null,null,null,null,null,null,null,null,null,{"$f":"+A6","v":2020},"mg/Nm3","Monthly 1/2 hourly mean","Monthly 1/2 hourly maximum","Monthly daily mean","Monthly daily maximum"]
[null,null,null,null,null,null,null,null,null,"A5","Jan"]
[null,null,null,null,null,null,null,null,null,null,"Feb"]
[null,null,null,null,null,null,null,null,null,null,"Mar"]
[null,null,null,null,null,null,null,null,null,null,"Apr"]
[null,null,null,null,null,null,null,null,null,null,"May"]
[null,null,null,null,null,null,null,null,null,null,"Jun"]
[null,null,null,null,null,null,null,null,null,null,"Jul"]
[null,null,null,null,null,null,null,null,null,null,"Aug"]
[null,null,null,null,null,null,null,null,null,null,"Sep"]
[null,null,null,null,null,null,null,null,null,null,"Oct"]
[null,null,null,null,null,null,null,null,null,null,"Nov"]
[null,null,null,null,null,null,null,null,null,null,"Dec"]
[null,null,null,null,null,null,null,null,null,null,"Annual",{"$f":"AVERAGE(L67:L78)","v":{"$error":"#DIV/0!"}},{"$f":"MAX(M67:M78)","v":0},{"$f":"AVERAGE(N67:N78)","v":{"$error":"#DIV/0!"}},{"$f":"MAX(O67:O78)","v":0}]

{"sheet":"TOC","index":16,"n_rows":79,"n_cols":17,"rows_kept":79,"cut":false,"hidden":false,"merged":[[3,16,7,18],[9,16,11,18],[12,16,15,18],[66,9,78,9],[4,1,4,3],[4,4,4,6],[4,9,4,14],[6,9,18,9],[21,9,33,9],[36,9,48,9],[47,0,47,6],[48,0,51,6],[51,9,63,9]]}
[{"$f":"+'Cover Page'!$B$29","v":"Annual Performance Report 2020"},null,null,null,{"$f":"+'Cover Page'!$B$33","v":"Eastcroft EfW"}]
[]
["Monitoring of Total organic carbon emissions",null,null,"Whole Installation",null,null,"See  Notes in Cell Q3",null,null,{"$f":"+A3","v":"Monitoring of Total organic carbon emissions"},null,null,null,"Per Combustion Line",null,null,"Notes:"]
[null,null,null,null,null,null,null,null,null,null,null,null,null,null,null,null,"User to add logic to complete Whole installation, Table A5:G18. From the data in Per Combustion Line, Table J6:O79, subject to No. of lines installed"]
["mg/Nm3","1/2 Hourly Reference Periods",null,null,"Daily Reference Periods"]
[{"$f":"+'Cover Page'!C39","v":2020},"1/2 hourly TOC ELV","Monthly 1/2 hourly mean","Highest 1/2 hourly maximum","Daily TOC ELV","Monthly daily mean","Highest daily maximum",null,null,{"$f":"+A6","v":2020},"mg/Nm3","Monthly 1/2 hourly mean","Monthly 1/2 hourly maximum","Monthly daily mean","Monthly daily maximum"]
["Jan",20,{"$f":"AVERAGE(L7,L22)","v":0.5},{"$f":"MAX(M7,M22)","v":3.6},10,{"$f":"AVERAGE(N7,N22)","v":0.44999999999999996},{"$f":"MAX(O7,O22)","v":0.8},null,null,"A1","Jan",0.3,3.6,0.3,0.4]
["Feb",20,{"$f":"AVERAGE(L8,L23)","v":0.55000000000000004},{"$f":"MAX(M8,M23)","v":20.8},10,{"$f":"AVERAGE(N8,N23)","v":0.5},{"$f":"MAX(O8,O23)","v":1},null,null,null,"Feb",0.4,6.5,0.3,0.4]
["Mar",20,0.55000000000000004,7.2,10,0.55000000000000004,1,null,null,null,"Mar",0.3,4.5999999999999996,0.3,0.6,null,"Whole Installation table A5:G18:"]
["Apr",20,0.55000000000000004,18.7,10,0.55000000000000004,0.9,null,null,null,"Apr",0.3,18.7,0.3,0.7,null,"Mean: for 1/2 hourly and daily periods calculate mean of values across all operational combustion lines for the month"]
["May",20,0.6,12.1,10,0.6,1.6,null,null,null,"May",0.3,12.1,0.3,0.7]
["Jun",20,0.5,3.7,10,0.44999999999999996,1,null,null,null,"Jun",0.2,3.7,0.2,0.4]
["Jul",20,0.5,6.8,10,0.5,0.9,null,null,null,"Jul",0.4,6.8,0.4,0.6,null,"Maximum: for 1/2 hourly and daily periods use the highest value across all operational combustion lines for the month"]
["Aug",20,0.55000000000000004,10.7,10,0.5,1.1000000000000001,null,null,null,"Aug",0.4,10.7,0.4,0.6]
["Sep",20,0.4,17.3,10,0.4,0.9,null,null,null,"Sep",0.3,7.9,0.3,0.6]
["Oct",20,0.5,10.199999999999999,10,0.5,0.9,null,null,null,"Oct",0.4,6,0.4,0.5]
["Nov",20,0.6,9.4,10,0.6,1,null,null,null,"Nov",0.5,2,0.5,0.7]
["Dec",20,0.7,15.3,10,0.65,1,null,null,null,"Dec",0.6,15.3,0.5,0.8]
[null,null,null,null,null,null,null,null,null,null,"Annual",{"$f":"AVERAGE(L7:L18)","v":0.36666666666666664},{"$f":"MAX(M7:M18)","v":18.7},{"$f":"AVERAGE(N7:N18)","v":0.34999999999999992},{"$f":"MAX(O7:O18)","v":0.8}]
[]
[null,null,null,null,null,null,null,null,null,{"$f":"+A6","v":2020},"mg/Nm3","Monthly 1/2 hourly mean","Monthly 1/2 hourly maximum","Monthly daily mean","Monthly daily maximum"]
[null,null,null,null,null,null,null,null,null,"A2","Jan",0.7,1.4,0.6,0.8]
[null,null,null,null,null,null,null,null,null,null,"Feb",0.7,20.8,0.7,1]
[null,null,null,null,null,null,null,null,null,null,"Mar",0.8,7.2,0.8,1]
[null,null,null,null,null,null,null,null,null,null,"Apr",0.8,6.7,0.8,0.9]
[null,null,null,null,null,null,null,null,null,null,"May",0.9,4.2,0.9,1.6]
[null,null,null,null,null,null,null,null,null,null,"Jun",0.8,2.2000000000000002,0.7,1]
[null,null,null,null,null,null,null,null,null,null,"Jul",0.6,1.3,0.6,0.9]
[null,null,null,null,null,null,null,null,null,null,"Aug",0.7,3.6,0.6,1.1000000000000001]
[null,null,null,null,null,null,null,null,null,null,"Sep",0.5,17.3,0.5,0.9]
[null,null,null,null,null,null,null,null,null,null,"Oct",0.6,10.199999999999999,0.6,0.9]
[null,null,null,null,null,null,null,null,null,null,"Nov",0.7,9.4,0.7,1]
[null,null,null,null,null,null,null,null,null,null,"Dec",0.8,3.6,0.8,1]
[null,null,null,null,null,null,null,null,null,null,"Annual",{"$f":"AVERAGE(L22:L33)","v":0.71666666666666667},{"$f":"MAX(M22:M33)","v":20.8},{"$f":"AVERAGE(N22:N33)","v":0.69166666666666654},{"$f":"MAX(O22:O33)","v":1.6}]
[]
[null,null,null,null,null,null,null,null,null,{"$f":"+A6","v":2020},"mg/Nm3","Monthly 1/2 hourly mean","Monthly 1/2 hourly maximum","Monthly daily mean","Monthly daily maximum"]
[null,null,null,null,null,null,null,null,null,"A3","Jan"]
[null,null,null,null,null,null,null,null,null,null,"Feb"]
[null,null,null,null,null,null,null,null,null,null,"Mar"]
[null,null,null,null,null,null,null,null,null,null,"Apr"]
[null,null,null,null,null,null,null,null,null,null,"May"]
[null,null,null,null,null,null,null,null,null,null,"Jun"]
[null,null,null,null,null,null,null,null,null,null,"Jul"]
[null,null,null,null,null,null,null,null,null,null,"Aug"]
[null,null,null,null,null,null,null,null,null,null,"Sep"]
[null,null,null,null,null,null,null,null,null,null,"Oct"]
[null,null,null,null,null,null,null,null,null,null,"Nov"]
["Comments :",null,null,null,null,null,null,null,null,null,"Dec"]
[null,null,null,null,null,null,null,null,null,null,"Annual",{"$f":"AVERAGE(L37:L48)","v":{"$error":"#DIV/0!"}},{"$f":"MAX(M37:M48)","v":0},{"$f":"AVERAGE(N37:N48)","v":{"$error":"#DIV/0!"}},{"$f":"MAX(O37:O48)","v":0}]
[]
[null,null,null,null,null,null,null,null,null,{"$f":"+A6","v":2020},"mg/Nm3","Monthly 1/2 hourly mean","Monthly 1/2 hourly maximum","Monthly daily mean","Monthly daily maximum"]
[null,null,null,null,null,null,null,null,null,"A4","Jan"]
[null,null,null,null,null,null,null,null,null,null,"Feb"]
[null,null,null,null,null,null,null,null,null,null,"Mar"]
[null,null,null,null,null,null,null,null,null,null,"Apr"]
[null,null,null,null,null,null,null,null,null,null,"May"]
[null,null,null,null,null,null,null,null,null,null,"Jun"]
[null,null,null,null,null,null,null,null,null,null,"Jul"]
[null,null,null,null,null,null,null,null,null,null,"Aug"]
[null,null,null,null,null,null,null,null,null,null,"Sep"]
[null,null,null,null,null,null,null,null,null,null,"Oct"]
[null,null,null,null,null,null,null,null,null,null,"Nov"]
[null,null,null,null,null,null,null,null,null,null,"Dec"]
[null,null,null,null,null,null,null,null,null,null,"Annual",{"$f":"AVERAGE(L52:L63)","v":{"$error":"#DIV/0!"}},{"$f":"MAX(M52:M63)","v":0},{"$f":"AVERAGE(N52:N63)","v":{"$error":"#DIV/0!"}},{"$f":"MAX(O52:O63)","v":0}]
[]
[null,null,null,null,null,null,null,null,null,{"$f":"+A6","v":2020},"mg/Nm3","Monthly 1/2 hourly mean","Monthly 1/2 hourly maximum","Monthly daily mean","Monthly daily maximum"]
[null,null,null,null,null,null,null,null,null,"A5","Jan"]
[null,null,null,null,null,null,null,null,null,null,"Feb"]
[null,null,null,null,null,null,null,null,null,null,"Mar"]
[null,null,null,null,null,null,null,null,null,null,"Apr"]
[null,null,null,null,null,null,null,null,null,null,"May"]
[null,null,null,null,null,null,null,null,null,null,"Jun"]
[null,null,null,null,null,null,null,null,null,null,"Jul"]
[null,null,null,null,null,null,null,null,null,null,"Aug"]
[null,null,null,null,null,null,null,null,null,null,"Sep"]
[null,null,null,null,null,null,null,null,null,null,"Oct"]
[null,null,null,null,null,null,null,null,null,null,"Nov"]
[null,null,null,null,null,null,null,null,null,null,"Dec"]
[null,null,null,null,null,null,null,null,null,null,"Annual",{"$f":"AVERAGE(L67:L78)","v":{"$error":"#DIV/0!"}},{"$f":"MAX(M67:M78)","v":0},{"$f":"AVERAGE(N67:N78)","v":{"$error":"#DIV/0!"}},{"$f":"MAX(O67:O78)","v":0}]

{"sheet":"Particulates","index":17,"n_rows":79,"n_cols":17,"rows_kept":79,"cut":false,"hidden":false,"merged":[[3,16,7,18],[9,16,11,18],[12,16,15,18],[66,9,78,9],[4,1,4,3],[4,4,4,6],[4,9,4,14],[6,9,18,9],[21,9,33,9],[36,9,48,9],[47,0,47,6],[48,0,51,6],[51,9,63,9]]}
[{"$f":"+'Cover Page'!$B$29","v":"Annual Performance Report 2020"},null,null,null,{"$f":"+'Cover Page'!$B$33","v":"Eastcroft EfW"}]
[]
["Monitoring of Particulate matter emissions",null,null,"Whole Installation",null,null,"See  Notes in Cell Q3",null,null,{"$f":"+A3","v":"Monitoring of Particulate matter emissions"},null,null,null,"Per Combustion Line",null,null,"Notes:"]
[null,null,null,null,null,null,null,null,null,null,null,null,null,null,null,null,"User to add logic to complete Whole installation, Table A5:G18. From the data in Per Combustion Line, Table J6:O79, subject to No. of lines installed"]
["mg/Nm3","1/2 Hourly Reference Periods",null,null,"Daily Reference Periods"]
[{"$f":"+'Cover Page'!C39","v":2020},"1/2 hourly PM ELV","Monthly 1/2 hourly mean","Highest 1/2 hourly maximum","Daily PM ELV","Monthly daily mean","Highest daily maximum",null,null,{"$f":"+A6","v":2020},"mg/Nm3","Monthly 1/2 hourly mean","Monthly 1/2 hourly maximum","Monthly daily mean","Monthly daily maximum"]
["Jan",30,{"$f":"AVERAGE(L7,L22)","v":0.35},{"$f":"MAX(M7,M22)","v":1.7},10,{"$f":"AVERAGE(N7,N22)","v":0.35},{"$f":"MAX(O7,O22)","v":0.7},null,null,"A1","Jan",0.5,1.7,0.5,0.7]
["Feb",30,{"$f":"AVERAGE(L8,L23)","v":0.4},{"$f":"MAX(M8,M23)","v":4.4000000000000004},10,{"$f":"AVERAGE(N8,N23)","v":0.4},{"$f":"MAX(O8,O23)","v":1.4},null,null,null,"Feb",0.6,4.4000000000000004,0.6,1.4]
["Mar",30,0.35,1.2,10,0.35,0.6,null,null,null,"Mar",0.5,1.2,0.5,0.6,null,"Whole Installation table A5:G18:"]
["Apr",30,0.44999999999999996,1.1000000000000001,10,0.4,0.7,null,null,null,"Apr",0.6,1,0.6,0.7,null,"Mean: for 1/2 hourly and daily periods calculate mean of values across all operational combustion lines for the month"]
["May",30,0.4,0.8,10,0.30000000000000004,0.5,null,null,null,"May",0.5,0.8,0.4,0.5]
["Jun",30,0.4,12.9,10,0.30000000000000004,1.3,null,null,null,"Jun",0.5,12.9,0.4,1.3]
["Jul",30,0.25,2.2999999999999998,10,0.2,0.8,null,null,null,"Jul",0.3,0.7,0.2,0.3,null,"Maximum: for 1/2 hourly and daily periods use the highest value across all operational combustion lines for the month"]
["Aug",30,0.4,1.1000000000000001,10,0.35,0.7,null,null,null,"Aug",0.6,1.1000000000000001,0.5,0.7]
["Sep",30,0.55000000000000004,2.5,10,0.5,1.5,null,null,null,"Sep",0.8,2.5,0.8,1.5]
["Oct",30,0.55000000000000004,2.2999999999999998,10,0.44999999999999996,1.6,null,null,null,"Oct",0.8,2.2999999999999998,0.7,1.6]
["Nov",30,0.3,2,10,0.2,0.4,null,null,null,"Nov",0.3,2,0.2,0.4]
["Dec",30,0.3,5.6,10,0.25,1.1000000000000001,null,null,null,"Dec",0.3,5.6,0.3,1.1000000000000001]
[null,null,null,null,null,null,null,null,null,null,"Annual",{"$f":"AVERAGE(L7:L18)","v":0.52499999999999991},{"$f":"MAX(M7:M18)","v":12.9},{"$f":"AVERAGE(N7:N18)","v":0.47500000000000003},{"$f":"MAX(O7:O18)","v":1.6}]
[]
[null,null,null,null,null,null,null,null,null,{"$f":"+A6","v":2020},"mg/Nm3","Monthly 1/2 hourly mean","Monthly 1/2 hourly maximum","Monthly daily mean","Monthly daily maximum"]
[null,null,null,null,null,null,null,null,null,"A2","Jan",0.2,0.4,0.2,0.2]
[null,null,null,null,null,null,null,null,null,null,"Feb",0.2,2.4,0.2,0.3]
[null,null,null,null,null,null,null,null,null,null,"Mar",0.2,1,0.2,0.4]
[null,null,null,null,null,null,null,null,null,null,"Apr",0.3,1.1000000000000001,0.2,0.4]
[null,null,null,null,null,null,null,null,null,null,"May",0.3,0.4,0.2,0.3]
[null,null,null,null,null,null,null,null,null,null,"Jun",0.3,0.4,0.2,0.3]
[null,null,null,null,null,null,null,null,null,null,"Jul",0.2,2.2999999999999998,0.2,0.8]
[null,null,null,null,null,null,null,null,null,null,"Aug",0.2,0.6,0.2,0.3]
[null,null,null,null,null,null,null,null,null,null,"Sep",0.3,0.6,0.2,0.3]
[null,null,null,null,null,null,null,null,null,null,"Oct",0.3,0.8,0.2,0.3]
[null,null,null,null,null,null,null,null,null,null,"Nov",0.3,0.5,0.2,0.3]
[null,null,null,null,null,null,null,null,null,null,"Dec",0.3,0.5,0.2,0.3]
[null,null,null,null,null,null,null,null,null,null,"Annual",{"$f":"AVERAGE(L22:L33)","v":0.2583333333333333},{"$f":"MAX(M22:M33)","v":2.4},{"$f":"AVERAGE(N22:N33)","v":0.19999999999999998},{"$f":"MAX(O22:O33)","v":0.8}]
[]
[null,null,null,null,null,null,null,null,null,{"$f":"+A6","v":2020},"mg/Nm3","Monthly 1/2 hourly mean","Monthly 1/2 hourly maximum","Monthly daily mean","Monthly daily maximum"]
[null,null,null,null,null,null,null,null,null,"A3","Jan"]
[null,null,null,null,null,null,null,null,null,null,"Feb"]
[null,null,null,null,null,null,null,null,null,null,"Mar"]
[null,null,null,null,null,null,null,null,null,null,"Apr"]
[null,null,null,null,null,null,null,null,null,null,"May"]
[null,null,null,null,null,null,null,null,null,null,"Jun"]
[null,null,null,null,null,null,null,null,null,null,"Jul"]
[null,null,null,null,null,null,null,null,null,null,"Aug"]
[null,null,null,null,null,null,null,null,null,null,"Sep"]
[null,null,null,null,null,null,null,null,null,null,"Oct"]
[null,null,null,null,null,null,null,null,null,null,"Nov"]
["Comments :",null,null,null,null,null,null,null,null,null,"Dec"]
[null,null,null,null,null,null,null,null,null,null,"Annual",{"$f":"AVERAGE(L37:L48)","v":{"$error":"#DIV/0!"}},{"$f":"MAX(M37:M48)","v":0},{"$f":"AVERAGE(N37:N48)","v":{"$error":"#DIV/0!"}},{"$f":"MAX(O37:O48)","v":0}]
[]
[null,null,null,null,null,null,null,null,null,{"$f":"+A6","v":2020},"mg/Nm3","Monthly 1/2 hourly mean","Monthly 1/2 hourly maximum","Monthly daily mean","Monthly daily maximum"]
[null,null,null,null,null,null,null,null,null,"A4","Jan"]
[null,null,null,null,null,null,null,null,null,null,"Feb"]
[null,null,null,null,null,null,null,null,null,null,"Mar"]
[null,null,null,null,null,null,null,null,null,null,"Apr"]
[null,null,null,null,null,null,null,null,null,null,"May"]
[null,null,null,null,null,null,null,null,null,null,"Jun"]
[null,null,null,null,null,null,null,null,null,null,"Jul"]
[null,null,null,null,null,null,null,null,null,null,"Aug"]
[null,null,null,null,null,null,null,null,null,null,"Sep"]
[null,null,null,null,null,null,null,null,null,null,"Oct"]
[null,null,null,null,null,null,null,null,null,null,"Nov"]
[null,null,null,null,null,null,null,null,null,null,"Dec"]
[null,null,null,null,null,null,null,null,null,null,"Annual",{"$f":"AVERAGE(L52:L63)","v":{"$error":"#DIV/0!"}},{"$f":"MAX(M52:M63)","v":0},{"$f":"AVERAGE(N52:N63)","v":{"$error":"#DIV/0!"}},{"$f":"MAX(O52:O63)","v":0}]
[]
[null,null,null,null,null,null,null,null,null,{"$f":"+A6","v":2020},"mg/Nm3","Monthly 1/2 hourly mean","Monthly 1/2 hourly maximum","Monthly daily mean","Monthly daily maximum"]
[null,null,null,null,null,null,null,null,null,"A5","Jan"]
[null,null,null,null,null,null,null,null,null,null,"Feb"]
[null,null,null,null,null,null,null,null,null,null,"Mar"]
[null,null,null,null,null,null,null,null,null,null,"Apr"]
[null,null,null,null,null,null,null,null,null,null,"May"]
[null,null,null,null,null,null,null,null,null,null,"Jun"]
[null,null,null,null,null,null,null,null,null,null,"Jul"]
[null,null,null,null,null,null,null,null,null,null,"Aug"]
[null,null,null,null,null,null,null,null,null,null,"Sep"]
[null,null,null,null,null,null,null,null,null,null,"Oct"]
[null,null,null,null,null,null,null,null,null,null,"Nov"]
[null,null,null,null,null,null,null,null,null,null,"Dec"]
[null,null,null,null,null,null,null,null,null,null,"Annual",{"$f":"AVERAGE(L67:L78)","v":{"$error":"#DIV/0!"}},{"$f":"MAX(M67:M78)","v":0},{"$f":"AVERAGE(N67:N78)","v":{"$error":"#DIV/0!"}},{"$f":"MAX(O67:O78)","v":0}]

{"sheet":"CO 95% 10 min","index":18,"n_rows":79,"n_cols":19,"rows_kept":79,"cut":false,"hidden":false,"merged":[[3,18,7,20],[9,18,11,20],[12,18,15,20],[66,10,78,10],[4,1,4,4],[4,5,4,7],[4,10,4,16],[6,10,18,10],[21,10,33,10],[36,10,48,10],[47,0,47,7],[48,0,51,7],[51,10,63,10]]}
[{"$f":"+'Cover Page'!$B$29","v":"Annual Performance Report 2020"},null,null,null,{"$f":"+'Cover Page'!$B$33","v":"Eastcroft EfW"}]
[]
["Monitoring of Carbon Monoxide (10-minute avg)",null,null,null,"Whole Installation",null,null,"See  Notes in Cell S3",null,{"$f":"+A3","v":"Monitoring of Carbon Monoxide (10-minute avg)"},null,null,null,null,"Per Combustion Line",null,"Notes:",null,"Notes:"]
[null,null,null,null,null,null,null,null,null,null,null,null,null,null,null,null,null,null,"User to add logic to complete Whole installation, Table A5:H18. From the data in Per Combustion Line, Table K6:Q79, subject to No. of lines installed"]
["mg/Nm3","10-minute Reference Periods",null,null,null,"Daily Reference Periods"]
[{"$f":"+'Cover Page'!C39","v":2020},"95%ile 10-min avg CO ELV","95%ile 10-min avg maximum","Monthly CO 10-min avg mean","10-min avg maximum","Daily CO ELV","Monthly daily mean","Highest daily maximum",null,null,{"$f":"+A6","v":2020},"mg/Nm3","95%ile 10-min avg maximum","Monthly CO 10-min avg mean","10-min avg maximum","Monthly daily mean","Monthly daily maximum"]
["Jan",150,{"$f":"MAX(M7,M22)","v":18},{"$f":"AVERAGE(N7,N22)","v":7.6499999999999995},{"$f":"MAX(O7,O22)","v":603.5},50,{"$f":"AVERAGE(P7,P22)","v":7.6},{"$f":"MAX(Q7,Q22)","v":12.4},null,null,"A1","Jan",18,9.1999999999999993,603.5,9.1999999999999993,12.4]
["Feb",{"$f":"+B7","v":150},{"$f":"MAX(M8,M23)","v":18.399999999999999},{"$f":"AVERAGE(N8,N23)","v":7.9499999999999993},{"$f":"MAX(O8,O23)","v":252.6},{"$f":"+F7","v":50},{"$f":"AVERAGE(P8,P23)","v":7.9499999999999993},{"$f":"MAX(Q8,Q23)","v":13.1},null,null,null,"Feb",18.399999999999999,10.1,252.6,10.1,13.1]
["Mar",{"$f":"+B8","v":150},26.9,9.6,308.2,{"$f":"+F8","v":50},9.6,20.399999999999999,null,null,null,"Mar",26.9,13.4,308.2,13.4,20.399999999999999,null,"Whole Installation table A5:H18:"]
["Apr",150,27,10.95,138,50,10.95,21.3,null,null,null,"Apr",27,15.1,138,15.1,21.3,null,"Mean: for 10-min and daily periods use average of all operational combustion lines."]
["May",150,32.6,13.25,447,50,13.25,22.6,null,null,null,"May",32.6,16.2,447,16.2,22.6]
["Jun",150,40.6,13,517.9,50,12.75,23.8,null,null,null,"Jun",40.6,17.7,517.9,17.7,23.8]
["Jul",150,84.5,8.65,379.9,50,8.3500000000000014,31.2,null,null,null,"Jul",84.5,8.4,310.7,8.4,30.5,null,"Maximum: for 10-min and daily periods use the highest of all operational combustion lines in any month."]
["Aug",150,21.2,6.5,72.3,50,6.5,10.5,null,null,null,"Aug",21.2,6.7,62.3,6.7,10.5]
["Sep",150,17.5,7.35,312.8,50,7.3,11,null,null,null,"Sep",16.5,7.5,312.8,7.5,11]
["Oct",150,18.7,8.1000000000000014,273.2,50,8.1000000000000014,11.9,null,null,null,"Oct",18.7,8.3000000000000007,98.5,8.3000000000000007,9.9]
["Nov",150,20.9,8.15,150.19999999999999,50,8.15,11.3,null,null,null,"Nov",20.9,7.9,48.1,7.9,10.9]
["Dec",150,19.899999999999999,8.6999999999999993,419.7,50,8.6999999999999993,13,null,null,null,"Dec",19,8.6,419.7,8.6,12.1]
[null,null,null,null,null,null,null,null,null,null,null,"Annual",{"$f":"AVERAGE(M7:M18)","v":28.691666666666663},{"$f":"AVERAGE(N7:N18)","v":10.758333333333335},{"$f":"MAX(O7:O18)","v":603.5},{"$f":"AVERAGE(P7:P18)","v":10.758333333333335},{"$f":"MAX(Q7:Q18)","v":30.5}]
[]
[null,null,null,null,null,null,null,null,null,null,{"$f":"+A6","v":2020},"mg/Nm3","95%ile 10-min avg maximum","Monthly CO 10-min avg mean","10-min avg maximum","Monthly daily mean","Monthly daily maximum"]
[null,null,null,null,null,null,null,null,null,null,"A2","Jan",14.3,6.1,413.2,6,8.3000000000000007]
[null,null,null,null,null,null,null,null,null,null,null,"Feb",11.8,5.8,223.5,5.8,7.8]
[null,null,null,null,null,null,null,null,null,null,null,"Mar",15.5,5.8,156.1,5.8,9.1999999999999993]
[null,null,null,null,null,null,null,null,null,null,null,"Apr",20.2,6.8,113.7,6.8,11.5]
[null,null,null,null,null,null,null,null,null,null,null,"May",31.7,10.3,105.7,10.3,17.5]
[null,null,null,null,null,null,null,null,null,null,null,"Jun",23,8.3000000000000007,154.19999999999999,7.8,9.9]
[null,null,null,null,null,null,null,null,null,null,null,"Jul",63.9,8.9,379.9,8.3000000000000007,31.2]
[null,null,null,null,null,null,null,null,null,null,null,"Aug",16.7,6.3,72.3,6.3,8.6999999999999993]
[null,null,null,null,null,null,null,null,null,null,null,"Sep",17.5,7.2,176.9,7.1,10.1]
[null,null,null,null,null,null,null,null,null,null,null,"Oct",18,7.9,273.2,7.9,11.9]
[null,null,null,null,null,null,null,null,null,null,null,"Nov",19.899999999999999,8.4,150.19999999999999,8.4,11.3]
[null,null,null,null,null,null,null,null,null,null,null,"Dec",19.899999999999999,8.8000000000000007,258.5,8.8000000000000007,13]
[null,null,null,null,null,null,null,null,null,null,null,"Annual",{"$f":"AVERAGE(M22:M33)","v":22.7},{"$f":"AVERAGE(N22:N33)","v":7.55},{"$f":"MAX(O22:O33)","v":413.2},{"$f":"AVERAGE(P22:P33)","v":7.4416666666666664},{"$f":"MAX(Q22:Q33)","v":31.2}]
[]
[null,null,null,null,null,null,null,null,null,null,{"$f":"+A6","v":2020},"mg/Nm3","95%ile 10-min avg maximum","Monthly CO 10-min avg mean","10-min avg maximum","Monthly daily mean","Monthly daily maximum"]
[null,null,null,null,null,null,null,null,null,null,"A3","Jan"]
[null,null,null,null,null,null,null,null,null,null,null,"Feb"]
[null,null,null,null,null,null,null,null,null,null,null,"Mar"]
[null,null,null,null,null,null,null,null,null,null,null,"Apr"]
[null,null,null,null,null,null,null,null,null,null,null,"May"]
[null,null,null,null,null,null,null,null,null,null,null,"Jun"]
[null,null,null,null,null,null,null,null,null,null,null,"Jul"]
[null,null,null,null,null,null,null,null,null,null,null,"Aug"]
[null,null,null,null,null,null,null,null,null,null,null,"Sep"]
[null,null,null,null,null,null,null,null,null,null,null,"Oct"]
[null,null,null,null,null,null,null,null,null,null,null,"Nov"]
["Comments :",null,null,null,null,null,null,null,null,null,null,"Dec"]
["Environment Agency explanatory note: The 10-minute average ELV is based on the “95th percentile”. In this case this means that 95% of the 10 minute averages in the relevant 24-hour period (i.e. 137) must be below 150 mg/Nm3, and 5% (i.e. 7) are allowed to be any value above 150 mg/Nm3. Whilst we expect operators to minimise CO emissions at all times, it is perfectly acceptable for the value of the maximum 10-minute average to be above 150 mg/Nm3, provided the 95th percentile ELV has been met for that period. ",null,null,null,null,null,null,null,null,null,null,"Annual",{"$f":"AVERAGE(M37:M48)","v":{"$error":"#DIV/0!"}},null,{"$f":"MAX(O37:O48)","v":0},{"$f":"AVERAGE(P37:P48)","v":{"$error":"#DIV/0!"}},{"$f":"MAX(Q37:Q48)","v":0}]
[]
[null,null,null,null,null,null,null,null,null,null,{"$f":"+A6","v":2020},"mg/Nm3","95%ile 10-min avg maximum","Monthly CO 10-min avg mean","10-min avg maximum","Monthly daily mean","Monthly daily maximum"]
[null,null,null,null,null,null,null,null,null,null,"A4","Jan"]
[null,null,null,null,null,null,null,null,null,null,null,"Feb"]
[null,null,null,null,null,null,null,null,null,null,null,"Mar"]
[null,null,null,null,null,null,null,null,null,null,null,"Apr"]
[null,null,null,null,null,null,null,null,null,null,null,"May"]
[null,null,null,null,null,null,null,null,null,null,null,"Jun"]
[null,null,null,null,null,null,null,null,null,null,null,"Jul"]
[null,null,null,null,null,null,null,null,null,null,null,"Aug"]
[null,null,null,null,null,null,null,null,null,null,null,"Sep"]
[null,null,null,null,null,null,null,null,null,null,null,"Oct"]
[null,null,null,null,null,null,null,null,null,null,null,"Nov"]
[null,null,null,null,null,null,null,null,null,null,null,"Dec"]
[null,null,null,null,null,null,null,null,null,null,null,"Annual",{"$f":"AVERAGE(M52:M63)","v":{"$error":"#DIV/0!"}},null,{"$f":"MAX(O52:O63)","v":0},{"$f":"AVERAGE(P52:P63)","v":{"$error":"#DIV/0!"}},{"$f":"MAX(Q52:Q63)","v":0}]
[]
[null,null,null,null,null,null,null,null,null,null,{"$f":"+A6","v":2020},"mg/Nm3","95%ile 10-min avg maximum","Monthly CO 10-min avg mean","10-min avg maximum","Monthly daily mean","Monthly daily maximum"]
[null,null,null,null,null,null,null,null,null,null,"A5","Jan"]
[null,null,null,null,null,null,null,null,null,null,null,"Feb"]
[null,null,null,null,null,null,null,null,null,null,null,"Mar"]
[null,null,null,null,null,null,null,null,null,null,null,"Apr"]
[null,null,null,null,null,null,null,null,null,null,null,"May"]
[null,null,null,null,null,null,null,null,null,null,null,"Jun"]
[null,null,null,null,null,null,null,null,null,null,null,"Jul"]
[null,null,null,null,null,null,null,null,null,null,null,"Aug"]
[null,null,null,null,null,null,null,null,null,null,null,"Sep"]
[null,null,null,null,null,null,null,null,null,null,null,"Oct"]
[null,null,null,null,null,null,null,null,null,null,null,"Nov"]
[null,null,null,null,null,null,null,null,null,null,null,"Dec"]
[null,null,null,null,null,null,null,null,null,null,null,"Annual",{"$f":"AVERAGE(M67:M78)","v":{"$error":"#DIV/0!"}},null,{"$f":"MAX(O67:O78)","v":0},{"$f":"AVERAGE(P67:P78)","v":{"$error":"#DIV/0!"}},{"$f":"MAX(Q67:Q78)","v":0}]

{"sheet":"NH3","index":19,"n_rows":79,"n_cols":17,"rows_kept":79,"cut":false,"hidden":false,"merged":[[3,16,7,18],[9,16,11,18],[12,16,15,18],[66,9,78,9],[4,1,4,3],[4,4,4,6],[4,9,4,14],[6,9,18,9],[21,9,33,9],[36,9,48,9],[47,0,47,6],[48,0,51,6],[51,9,63,9]]}
[{"$f":"+'Cover Page'!$B$29","v":"Annual Performance Report 2020"},null,null,null,{"$f":"+'Cover Page'!$B$33","v":"Eastcroft EfW"}]
[]
["Monitoring of Ammnonia emissions ",null,null,"Whole Installation",null,null,"See  Notes in Cell Q3",null,null,{"$f":"+A3","v":"Monitoring of Ammnonia emissions "},null,null,null,"Per Combustion Line",null,null,"Notes:"]
[null,null,null,null,null,null,null,null,null,null,null,null,null,null,null,null,"User to add logic to complete Whole installation, Table A5:G18. From the data in Per Combustion Line, Table J6:O79, subject to No. of lines installed"]
["mg/Nm3","1/2 Hourly Reference Periods",null,null,"Daily Reference Periods"]
[{"$f":"+'Cover Page'!C39","v":2020},"1/2 hourly NH3 ELV","Monthly 1/2 hourly mean","Highest 1/2 hourly maximum","Daily NH3 ELV","Monthly daily mean","Highest daily maximum",null,null,{"$f":"+A6","v":2020},"mg/Nm3","Monthly 1/2 hourly mean","Monthly 1/2 hourly maximum","Monthly daily mean","Monthly daily maximum"]
["Jan",0,{"$f":"AVERAGE(L7,L22)","v":0.6},{"$f":"MAX(M7,M22)","v":8.6},10,{"$f":"AVERAGE(N7,N22)","v":0.55000000000000004},{"$f":"MAX(O7,O22)","v":1.1000000000000001},null,null,"A1","Jan",0.5,4.5999999999999996,0.5,0.8]
["Feb",{"$f":"+B7","v":0},{"$f":"AVERAGE(L8,L23)","v":1.3},{"$f":"MAX(M8,M23)","v":9.1999999999999993},{"$f":"+E7","v":10},{"$f":"AVERAGE(N8,N23)","v":1.2},{"$f":"MAX(O8,O23)","v":4},null,null,null,"Feb",1.1000000000000001,6.8,1,2.4]
["Mar",{"$f":"+B8","v":0},0.9,9.3000000000000007,{"$f":"+E8","v":10},0.8,2,null,null,null,"Mar",0.7,9.3000000000000007,0.6,1.6,null,"Whole Installation table A5:G18:"]
["Apr",0,0.5,6.2,10,0.5,1.2,null,null,null,"Apr",0.4,6,0.4,1.1000000000000001,null,"Mean: for 1/2 hourly and daily periods calculate mean of values across all operational combustion lines for the month"]
["May",0,0.95000000000000007,12.2,10,0.9,2.9,null,null,null,"May",0.8,8.1,0.7,1.3]
["Jun",0,1.1000000000000001,7.1,10,0.95000000000000007,2.1,null,null,null,"Jun",1.2,6.8,1.1000000000000001,2.1]
["Jul",0,2.4,22.2,10,2.2999999999999998,9.6,null,null,null,"Jul",2.5,15.2,2.4,9.6,null,"Maximum: for 1/2 hourly and daily periods use the highest value across all operational combustion lines for the month"]
["Aug",0,0.75,8.1999999999999993,10,0.7,1.7,null,null,null,"Aug",0.7,6.9,0.6,0.9]
["Sep",0,0.7,5.4,10,0.6,1,null,null,null,"Sep",0.7,3,0.6,0.9]
["Oct",0,0.8,6.7,10,0.75,1.2,null,null,null,"Oct",0.8,3.8,0.7,1.2]
["Nov",0,0.8,7.4,10,0.75,1.5,null,null,null,"Nov",0.8,4,0.8,1.1000000000000001]
["Dec",0,0.8,9.9,10,0.8,2.5,null,null,null,"Dec",0.8,5.9,0.8,1.8]
[null,null,null,null,null,null,null,null,null,null,"Annual",{"$f":"AVERAGE(L7:L18)","v":0.91666666666666685},{"$f":"MAX(M7:M18)","v":15.2},{"$f":"AVERAGE(N7:N18)","v":0.85000000000000009},{"$f":"MAX(O7:O18)","v":9.6}]
[]
[null,null,null,null,null,null,null,null,null,{"$f":"+A6","v":2020},"mg/Nm3","Monthly 1/2 hourly mean","Monthly 1/2 hourly maximum","Monthly daily mean","Monthly daily maximum"]
[null,null,null,null,null,null,null,null,null,"A2","Jan",0.7,8.6,0.6,1.1000000000000001]
[null,null,null,null,null,null,null,null,null,null,"Feb",1.5,9.1999999999999993,1.4,4]
[null,null,null,null,null,null,null,null,null,null,"Mar",1.1000000000000001,5.6,1,2]
[null,null,null,null,null,null,null,null,null,null,"Apr",0.6,6.2,0.6,1.2]
[null,null,null,null,null,null,null,null,null,null,"May",1.1000000000000001,12.2,1.1000000000000001,2.9]
[null,null,null,null,null,null,null,null,null,null,"Jun",1,7.1,0.8,1.8]
[null,null,null,null,null,null,null,null,null,null,"Jul",2.2999999999999998,22.2,2.2000000000000002,7.1]
[null,null,null,null,null,null,null,null,null,null,"Aug",0.8,8.1999999999999993,0.8,1.7]
[null,null,null,null,null,null,null,null,null,null,"Sep",0.7,5.4,0.6,1]
[null,null,null,null,null,null,null,null,null,null,"Oct",0.8,6.7,0.8,1.1000000000000001]
[null,null,null,null,null,null,null,null,null,null,"Nov",0.8,7.4,0.7,1.5]
[null,null,null,null,null,null,null,null,null,null,"Dec",0.8,9.9,0.8,2.5]
[null,null,null,null,null,null,null,null,null,null,"Annual",{"$f":"AVERAGE(L22:L33)","v":1.0166666666666668},{"$f":"MAX(M22:M33)","v":22.2},{"$f":"AVERAGE(N22:N33)","v":0.95000000000000007},{"$f":"MAX(O22:O33)","v":7.1}]
[]
[null,null,null,null,null,null,null,null,null,{"$f":"+A6","v":2020},"mg/Nm3","Monthly 1/2 hourly mean","Monthly 1/2 hourly maximum","Monthly daily mean","Monthly daily maximum"]
[null,null,null,null,null,null,null,null,null,"A3","Jan"]
[null,null,null,null,null,null,null,null,null,null,"Feb"]
[null,null,null,null,null,null,null,null,null,null,"Mar"]
[null,null,null,null,null,null,null,null,null,null,"Apr"]
[null,null,null,null,null,null,null,null,null,null,"May"]
[null,null,null,null,null,null,null,null,null,null,"Jun"]
[null,null,null,null,null,null,null,null,null,null,"Jul"]
[null,null,null,null,null,null,null,null,null,null,"Aug"]
[null,null,null,null,null,null,null,null,null,null,"Sep"]
[null,null,null,null,null,null,null,null,null,null,"Oct"]
[null,null,null,null,null,null,null,null,null,null,"Nov"]
["Comments :",null,null,null,null,null,null,null,null,null,"Dec"]
["An indicated ELV value of zero in the table above means that no ammonia limit is set in the permit.  ",null,null,null,null,null,null,null,null,null,"Annual",{"$f":"AVERAGE(L37:L48)","v":{"$error":"#DIV/0!"}},{"$f":"MAX(M37:M48)","v":0},{"$f":"AVERAGE(N37:N48)","v":{"$error":"#DIV/0!"}},{"$f":"MAX(O37:O48)","v":0}]
[]
[null,null,null,null,null,null,null,null,null,{"$f":"+A6","v":2020},"mg/Nm3","Monthly 1/2 hourly mean","Monthly 1/2 hourly maximum","Monthly daily mean","Monthly daily maximum"]
[null,null,null,null,null,null,null,null,null,"A4","Jan"]
[null,null,null,null,null,null,null,null,null,null,"Feb"]
[null,null,null,null,null,null,null,null,null,null,"Mar"]
[null,null,null,null,null,null,null,null,null,null,"Apr"]
[null,null,null,null,null,null,null,null,null,null,"May"]
[null,null,null,null,null,null,null,null,null,null,"Jun"]
[null,null,null,null,null,null,null,null,null,null,"Jul"]
[null,null,null,null,null,null,null,null,null,null,"Aug"]
[null,null,null,null,null,null,null,null,null,null,"Sep"]
[null,null,null,null,null,null,null,null,null,null,"Oct"]
[null,null,null,null,null,null,null,null,null,null,"Nov"]
[null,null,null,null,null,null,null,null,null,null,"Dec"]
[null,null,null,null,null,null,null,null,null,null,"Annual",{"$f":"AVERAGE(L52:L63)","v":{"$error":"#DIV/0!"}},{"$f":"MAX(M52:M63)","v":0},{"$f":"AVERAGE(N52:N63)","v":{"$error":"#DIV/0!"}},{"$f":"MAX(O52:O63)","v":0}]
[]
[null,null,null,null,null,null,null,null,null,{"$f":"+A6","v":2020},"mg/Nm3","Monthly 1/2 hourly mean","Monthly 1/2 hourly maximum","Monthly daily mean","Monthly daily maximum"]
[null,null,null,null,null,null,null,null,null,"A5","Jan"]
[null,null,null,null,null,null,null,null,null,null,"Feb"]
[null,null,null,null,null,null,null,null,null,null,"Mar"]
[null,null,null,null,null,null,null,null,null,null,"Apr"]
[null,null,null,null,null,null,null,null,null,null,"May"]
[null,null,null,null,null,null,null,null,null,null,"Jun"]
[null,null,null,null,null,null,null,null,null,null,"Jul"]
[null,null,null,null,null,null,null,null,null,null,"Aug"]
[null,null,null,null,null,null,null,null,null,null,"Sep"]
[null,null,null,null,null,null,null,null,null,null,"Oct"]
[null,null,null,null,null,null,null,null,null,null,"Nov"]
[null,null,null,null,null,null,null,null,null,null,"Dec"]
[null,null,null,null,null,null,null,null,null,null,"Annual",{"$f":"AVERAGE(L67:L78)","v":{"$error":"#DIV/0!"}},{"$f":"MAX(M67:M78)","v":0},{"$f":"AVERAGE(N67:N78)","v":{"$error":"#DIV/0!"}},{"$f":"MAX(O67:O78)","v":0}]